{"text_format":"1","workbook":"xlsx","n_sheets":3,"sheets":["Budget Worksheet","COI Disclosure Form","Lookups"],"not_rendered":{"charts":0,"images":0,"macros":1,"external_links":0,"defined_names":15,"comments":1,"pivot_tables":0},"unopened":[],"bounds":{"document_bytes":16777216,"sheet_cells":100000,"rows_first":2000,"rows_last":500,"rows_between":2000,"halvings":0,"cell_chars":16384,"cell_head_chars":4096},"cells_cut":0,"cells_raw":0,"read":"whole","date_system":"1900"}

{"sheet":"Budget Worksheet","index":0,"n_rows":102,"n_cols":38,"rows_kept":102,"cut":false,"hidden":false,"merged":[[101,2,101,7],[98,2,98,7],[99,2,99,7],[100,2,100,7],[78,37,79,37],[78,33,79,33],[78,21,79,21],[78,22,79,22],[78,23,79,23],[78,34,79,34],[78,24,79,24],[78,25,79,25],[78,26,79,26],[85,15,87,16],[85,20,87,21],[85,25,87,26],[78,35,79,35],[78,36,79,36],[78,27,79,27],[78,28,79,28],[78,18,79,18],[85,30,87,31],[78,29,79,29],[78,30,79,30],[78,31,79,31],[78,32,79,32],[40,2,41,2],[78,8,79,8],[88,30,90,31],[88,5,90,6],[78,7,79,7],[78,9,79,9],[78,10,79,10],[78,11,79,11],[78,12,79,12],[78,13,79,13],[78,14,79,14],[78,15,79,15],[78,16,79,16],[78,17,79,17],[78,19,79,19],[78,20,79,20],[91,30,93,31],[94,30,96,31],[88,15,90,16],[91,15,93,16],[94,15,96,16],[88,20,90,21],[91,20,93,21],[94,20,96,21],[88,25,90,26],[91,25,93,26],[94,25,96,26],[2,3,3,5],[91,5,93,6],[94,5,96,6],[88,10,90,11],[91,10,93,11],[94,10,96,11],[85,5,87,6],[85,10,87,11],[4,3,4,5]]}
[]
[null,null,null,null,null,null,null,null,{"$f":"IF(IF(I16<=$F8,ROUND((I16-(E8+1))/30,0),ROUND(($F8-(E8+1))/30,0))>=0,IF(I16<=$F8,ROUND((I16-(E8+1))/30,0),ROUND(($F8-(E8+1))/30,0)),0)","v":0},null,null,null,null,{"$f":"IF(IF(N16<=$F8,ROUND((N16-(I16+1))/30,0),ROUND(($F8-(I16+1))/30,0))>=0,IF(N16<=$F8,ROUND((N16-(I16+1))/30,0),ROUND(($F8-(I16+1))/30,0)),0)","v":0},null,null,null,null,{"$f":"IF(IF(S16<=$F8,ROUND((S16-(N16+1))/30,0),ROUND(($F8-(N16+1))/30,0))>=0,IF(S16<=$F8,ROUND((S16-(N16+1))/30,0),ROUND(($F8-(N16+1))/30,0)),0)","v":0},null,null,null,null,{"$f":"IF(IF(X16<=$F8,ROUND((X16-(S16+1))/30,0),ROUND(($F8-(S16+1))/30,0))>=0,IF(X16<=$F8,ROUND((X16-(S16+1))/30,0),ROUND(($F8-(S16+1))/30,0)),0)","v":0},null,null,null,null,{"$f":"IF(IF(AC16<=$F8,ROUND((AC16-(X16+1))/30,0),ROUND(($F8-(X16+1))/30,0))>=0,IF(AC16<=$F8,ROUND((AC16-(X16+1))/30,0),ROUND(($F8-(X16+1))/30,0)),0)","v":0}]
[null,null,null,"V-TRC Internal Budget Development Form"]
[]
[null,null,null,"*** this document is not for routing purposes ***"]
[null,null,null,null,null,null,null,null,"FY16 Rates",null,null,null,null,"FY17 Rates",null,null,null,null,"FY18 Rates",null,null,null,null,"FY19 Rates",null,null,null,null,"FY20 Rates"]
[null,null,null,null,"Project Start","Project End",null,null,"Research",null,null,null,null,"Research",null,null,null,null,"Research",null,null,null,null,"Research",null,null,null,null,"Research"]
[null,null,null,null,null,null,null,null,0.54,null,null,null,null,0.54500000000000004,null,null,null,null,0.56000000000000005,null,null,null,null,0.56000000000000005,null,null,null,null,0.56000000000000005]
[null,null,null,null,null,null,null,null,"Regular",null,null,null,null,"Regular",null,null,null,null,"Regular",null,null,null,null,"Regular",null,null,null,null,"Regular"]
[null,null,null,null,null,null,null,null,0.43,null,null,null,null,0.43,null,null,null,null,0.432,null,null,null,null,0.435,null,null,null,null,0.439]
[null,null,null,null,null,null,null,null,"Grad Health",null,null,null,null,"Grad Health",null,null,null,null,"Grad Health",null,null,null,null,"Grad Health",null,null,null,null,"Grad Health"]
[null,null,null,null,null,null,null,null,6.6000000000000003E-2,null,null,null,null,6.6000000000000003E-2,null,null,null,null,6.6000000000000003E-2,null,null,null,null,6.6000000000000003E-2,null,null,null,null,6.6000000000000003E-2]
[null,null,null,null,null,null,null,null,"Temporary",null,null,null,null,"Temporary",null,null,null,null,"Temporary",null,null,null,null,"Temporary",null,null,null,null,"Temporary"]
[null,null,null,null,null,null,null,null,9.9000000000000005E-2,null,null,null,null,9.9000000000000005E-2,null,null,null,null,0.1,null,null,null,null,0.1,null,null,null,null,0.1]
[null,null,null,null,null,null,null,null,"year ending",null,null,null,null,"year ending",null,null,null,null,"year ending",null,null,null,null,"year ending",null,null,null,null,"year ending"]
[null,null,null,null,null,null,null,null,"2016-06-30",null,null,null,null,"2017-06-30",{"$f":"$J$16","v":0},{"$f":"$K$16","v":0},{"$f":"$L$16","v":0},null,"2018-06-30",{"$f":"$J$16","v":0},{"$f":"$K$16","v":0},{"$f":"$L$16","v":0},null,"2019-06-30",{"$f":"$J$16","v":0},{"$f":"$K$16","v":0},{"$f":"$L$16","v":0},null,"2020-06-30",{"$f":"$J$16","v":0},{"$f":"$K$16","v":0},{"$f":"$L$16","v":0},null,"All Years"]
[null,"Salary","Name","Project Role/Employee Type","Appt. \nMonths","Total % \nEffort","Person/\nMonths","Base","Sponsor ","select","select","select","Total","Sponsor ",{"$f":"J17","v":"select"},{"$f":"K17","v":"select"},{"$f":"L17","v":"select"},"Total","Sponsor ",{"$f":"O17","v":"select"},{"$f":"P17","v":"select"},{"$f":"Q17","v":"select"},"Total","Sponsor ",{"$f":"T17","v":"select"},{"$f":"U17","v":"select"},{"$f":"V17","v":"select"},"Total","Sponsor ",{"$f":"Y17","v":"select"},{"$f":"Z17","v":"select"},{"$f":"AA17","v":"select"},"Total","Sponsor ",{"$f":"J17","v":"select"},{"$f":"K17","v":"select"},{"$f":"L17","v":"select"},"Total"]
[null,null,null,null,null,null,{"$f":"F18*E18","v":0},{"$f":"B18","v":0},{"$f":"H18*F18*(I$2/12)","v":0},{"$f":"ROUND(H18*F19,0)","v":0},null,null,{"$f":"SUM(I18:L18)","v":0},{"$f":"IF(N$2>=1,ROUND(B18*F18*$B$37*(N$2/12),0),0)","v":0},{"$f":"IF($D$8>=2,ROUND(J18*$B$10,0),0)","v":0},null,null,{"$f":"SUM(N18:Q18)","v":0},{"$f":"IF(S$2>=1,ROUND(B18*F18*$B$37*$B$37*(S$2/12),0),0)","v":0},{"$f":"IF($D$8>=3,ROUND(O18*$B$10,0),0)","v":0},null,null,{"$f":"SUM(S18:V18)","v":0},{"$f":"IF(X$2>=1,ROUND(B18*F18*$B$37*$B$37*$B$37*(X$2/12),0),0)","v":0},{"$f":"IF($D$8>=4,ROUND(T18*$B$10,0),0)","v":0},null,null,{"$f":"SUM(X18:AA18)","v":0},{"$f":"IF(AC$2>=1,ROUND(B18*F18*$B$37*$B$37*$B$37*$B$37*(AC$2/12),0),0)","v":0},{"$f":"IF($D$8>=5,ROUND(Y18*$B$10,0),0)","v":0},null,null,{"$f":"SUM(AC18:AF18)","v":0},{"$f":"I18+N18+S18+X18+AC18","v":0},{"$f":"J18+O18+T18+Y18+AD18","v":0},{"$f":"K18+P18+U18+Z18+AE18","v":0},{"$f":"L18+Q18+V18+AA18+AF18","v":0},{"$f":"SUM(AH18:AK18)","v":0}]
[null,null,null,null,null,null,{"$f":"IF(E18=3,\"SUM\",IF(E18=12, \"CAL\",IF(ISBLANK(E18),,\"ACAD\")))","v":0},"Fringe Benefits",{"$f":"IF($D18=\"Pre Doctoral Fellow\",0,IF($D18=\"Post Doctoral Fellow\",0,IF($D18=\"Graduate Student\",ROUND(I18*$I$12,0),IF($D18=\"Other\",ROUND(I18*$I$14,0),ROUND(I18*$I$10,0)))))","v":0},{"$f":"IF($D18=\"Pre Doctoral Fellow\",0,IF($D18=\"Post Doctoral Fellow\",0,IF($D18=\"Graduate Student\",ROUND(J18*$I$12,0),ROUND(J18*$I$10,0))))","v":0},null,null,{"$f":"SUM(I19:L19)","v":0},{"$f":"IF($D18=\"Pre Doctoral Fellow\",0,IF($D18=\"Post Doctoral Fellow\",0,IF($D18=\"Graduate Student\",ROUND(N18*$N$12,0),IF($D18=\"Other\",ROUND(N18*$N$14,0),ROUND(N18*$N$10,0)))))","v":0},{"$f":"IF($D18=\"Pre Doctoral Fellow\",0,IF($D18=\"Post Doctoral Fellow\",0,IF($D18=\"Graduate Student\",ROUND(O18*$N$12,0),ROUND(O18*$N$10,0))))","v":0},null,null,{"$f":"SUM(N19:Q19)","v":0},{"$f":"IF($D18=\"Pre Doctoral Fellow\",0,IF($D18=\"Post Doctoral Fellow\",0,IF($D18=\"Graduate Student\",ROUND(S18*$S$12,0),ROUND(S18*$S$10,0))))","v":0},{"$f":"IF($D18=\"Pre Doctoral Fellow\",0,IF($D18=\"Post Doctoral Fellow\",0,IF($D18=\"Graduate Student\",ROUND(T18*$S$12,0),ROUND(T18*$S$10,0))))","v":0},null,null,{"$f":"SUM(S19:V19)","v":0},{"$f":"IF($D18=\"Pre Doctoral Fellow\",0,IF($D18=\"Post Doctoral Fellow\",0,IF($D18=\"Graduate Student\",ROUND(X18*$X$12,0),ROUND(X18*$X$10,0))))","v":0},{"$f":"IF($D18=\"Pre Doctoral Fellow\",0,IF($D18=\"Post Doctoral Fellow\",0,IF($D18=\"Graduate Student\",ROUND(Y18*$X$12,0),ROUND(Y18*$X$10,0))))","v":0},null,null,{"$f":"SUM(X19:AA19)","v":0},{"$f":"IF($D18=\"Pre Doctoral Fellow\",0,IF($D18=\"Post Doctoral Fellow\",0,IF($D18=\"Graduate Student\",ROUND(AC18*$AC$12,0),ROUND(AC18*$AC$10,0))))","v":0},{"$f":"IF($D18=\"Pre Doctoral Fellow\",0,IF($D18=\"Post Doctoral Fellow\",0,IF($D18=\"Graduate Student\",ROUND(AD18*$AC$12,0),ROUND(AD18*$AC$10,0))))","v":0},null,null,{"$f":"SUM(AC19:AF19)","v":0},0,0,0,0,{"$f":"SUM(AH19:AK19)","v":0}]
[null,null,null,null,null,null,{"$f":"F20*E20","v":0},{"$f":"B20","v":0},{"$f":"H20*F20*(I$2/12)","v":0},{"$f":"IF(J$2>=1,ROUND(E20*$B$37*(J$2/12),0),0)","v":0},{"$f":"IF(K$2>=1,ROUND(F20*$B$37*(K$2/12),0),0)","v":0},{"$f":"IF($X$2>=1,ROUND(G20*$B$37,0),0)","v":0},{"$f":"IF($AC$2>=1,ROUND(H20*$B$37,0),0)","v":0},{"$f":"IF(N$2>=1,ROUND(B20*F20*$B$37*(N$2/12),0),0)","v":0},{"$f":"IF($D$8>=2,ROUND(J20*$B$10,0),0)","v":0},null,null,{"$f":"SUM(N20:Q20)","v":0},{"$f":"IF(S$2>=1,ROUND(B20*F20*$B$37*$B$37*(S$2/12),0),0)","v":0},{"$f":"IF($D$8>=3,ROUND(O20*$B$10,0),0)","v":0},null,null,{"$f":"SUM(S20:V20)","v":0},{"$f":"IF(X$2>=1,ROUND(B20*F20*$B$37*$B$37*$B$37*(X$2/12),0),0)","v":0},{"$f":"IF($D$8>=4,ROUND(T20*$B$10,0),0)","v":0},null,null,{"$f":"SUM(X20:AA20)","v":0},{"$f":"IF(AC$2>=1,ROUND(B20*F20*$B$37*$B$37*$B$37*$B$37*(AC$2/12),0),0)","v":0},{"$f":"IF($D$8>=5,ROUND(Y20*$B$10,0),0)","v":0},null,null,{"$f":"SUM(AC20:AF20)","v":0},0,0,0,0,{"$f":"SUM(AH20:AK20)","v":0}]
[null,null,null,null,null,null,{"$f":"IF(E20=3,\"SUM\",IF(E20=12, \"CAL\",IF(ISBLANK(E20),,\"ACAD\")))","v":0},"Fringe Benefits",{"$f":"IF($D20=\"Pre Doctoral Fellow\",0,IF($D20=\"Post Doctoral Fellow\",0,IF($D20=\"Graduate Student\",ROUND(I20*$I$12,0),IF($D20=\"Other\",ROUND(I20*$I$14,0),ROUND(I20*$I$10,0)))))","v":0},{"$f":"IF($D20=\"Pre Doctoral Fellow\",0,IF($D20=\"Post Doctoral Fellow\",0,IF($D20=\"Graduate Student\",ROUND(J20*$I$12,0),ROUND(J20*$I$10,0))))","v":0},null,null,0,{"$f":"IF($D20=\"Pre Doctoral Fellow\",0,IF($D20=\"Post Doctoral Fellow\",0,IF($D20=\"Graduate Student\",ROUND(N20*$N$12,0),IF($D20=\"Other\",ROUND(N20*$N$14,0),ROUND(N20*$N$10,0)))))","v":0},{"$f":"IF($D20=\"Pre Doctoral Fellow\",0,IF($D20=\"Post Doctoral Fellow\",0,IF($D20=\"Graduate Student\",ROUND(O20*$N$12,0),ROUND(O20*$N$10,0))))","v":0},null,null,0,{"$f":"IF($D20=\"Pre Doctoral Fellow\",0,IF($D20=\"Post Doctoral Fellow\",0,IF($D20=\"Graduate Student\",ROUND(S20*$S$12,0),ROUND(S20*$S$10,0))))","v":0},{"$f":"IF($D20=\"Pre Doctoral Fellow\",0,IF($D20=\"Post Doctoral Fellow\",0,IF($D20=\"Graduate Student\",ROUND(T20*$S$12,0),ROUND(T20*$S$10,0))))","v":0},null,null,0,{"$f":"IF($D20=\"Pre Doctoral Fellow\",0,IF($D20=\"Post Doctoral Fellow\",0,IF($D20=\"Graduate Student\",ROUND(X20*$X$12,0),ROUND(X20*$X$10,0))))","v":0},{"$f":"IF($D20=\"Pre Doctoral Fellow\",0,IF($D20=\"Post Doctoral Fellow\",0,IF($D20=\"Graduate Student\",ROUND(Y20*$X$12,0),ROUND(Y20*$X$10,0))))","v":0},null,null,0,{"$f":"IF($D20=\"Pre Doctoral Fellow\",0,IF($D20=\"Post Doctoral Fellow\",0,IF($D20=\"Graduate Student\",ROUND(AC20*$AC$12,0),ROUND(AC20*$AC$10,0))))","v":0},{"$f":"IF($D20=\"Pre Doctoral Fellow\",0,IF($D20=\"Post Doctoral Fellow\",0,IF($D20=\"Graduate Student\",ROUND(AD20*$AC$12,0),ROUND(AD20*$AC$10,0))))","v":0},null,null,0,0,0,0,0,0]
[null,null,null,null,null,null,{"$f":"F22*E22","v":0},{"$f":"B22","v":0},{"$f":"H22*F22*(I$2/12)","v":0},{"$f":"IF(J$2>=1,ROUND(E22*$B$37*(J$2/12),0),0)","v":0},{"$f":"IF(K$2>=1,ROUND(F22*$B$37*(K$2/12),0),0)","v":0},{"$f":"IF($X$2>=1,ROUND(G22*$B$37,0),0)","v":0},{"$f":"IF($AC$2>=1,ROUND(H22*$B$37,0),0)","v":0},{"$f":"IF(N$2>=1,ROUND(B22*F22*$B$37*(N$2/12),0),0)","v":0},{"$f":"IF($D$8>=2,ROUND(J22*$B$10,0),0)","v":0},null,null,{"$f":"SUM(N22:Q22)","v":0},{"$f":"IF(S$2>=1,ROUND(B22*F22*$B$37*$B$37*(S$2/12),0),0)","v":0},{"$f":"IF($D$8>=3,ROUND(O22*$B$10,0),0)","v":0},null,null,{"$f":"SUM(S22:V22)","v":0},{"$f":"IF(X$2>=1,ROUND(B22*F22*$B$37*$B$37*$B$37*(X$2/12),0),0)","v":0},{"$f":"IF($D$8>=4,ROUND(T22*$B$10,0),0)","v":0},null,null,{"$f":"SUM(X22:AA22)","v":0},{"$f":"IF(AC$2>=1,ROUND(B22*F22*$B$37*$B$37*$B$37*$B$37*(AC$2/12),0),0)","v":0},{"$f":"IF($D$8>=5,ROUND(Y22*$B$10,0),0)","v":0},null,null,{"$f":"SUM(AC22:AF22)","v":0},0,0,0,0,0]
[null,null,null,null,null,null,{"$f":"IF(E22=3,\"SUM\",IF(E22=12, \"CAL\",IF(ISBLANK(E22),,\"ACAD\")))","v":0},"Fringe Benefits",{"$f":"IF($D22=\"Pre Doctoral Fellow\",0,IF($D22=\"Post Doctoral Fellow\",0,IF($D22=\"Graduate Student\",ROUND(I22*$I$12,0),IF($D22=\"Other\",ROUND(I22*$I$14,0),ROUND(I22*$I$10,0)))))","v":0},{"$f":"IF($D22=\"Pre Doctoral Fellow\",0,IF($D22=\"Post Doctoral Fellow\",0,IF($D22=\"Graduate Student\",ROUND(J22*$I$12,0),ROUND(J22*$I$10,0))))","v":0},null,null,0,{"$f":"IF($D22=\"Pre Doctoral Fellow\",0,IF($D22=\"Post Doctoral Fellow\",0,IF($D22=\"Graduate Student\",ROUND(N22*$N$12,0),IF($D22=\"Other\",ROUND(N22*$N$14,0),ROUND(N22*$N$10,0)))))","v":0},{"$f":"IF($D22=\"Pre Doctoral Fellow\",0,IF($D22=\"Post Doctoral Fellow\",0,IF($D22=\"Graduate Student\",ROUND(O22*$N$12,0),ROUND(O22*$N$10,0))))","v":0},null,null,0,{"$f":"IF($D22=\"Pre Doctoral Fellow\",0,IF($D22=\"Post Doctoral Fellow\",0,IF($D22=\"Graduate Student\",ROUND(S22*$S$12,0),ROUND(S22*$S$10,0))))","v":0},{"$f":"IF($D22=\"Pre Doctoral Fellow\",0,IF($D22=\"Post Doctoral Fellow\",0,IF($D22=\"Graduate Student\",ROUND(T22*$S$12,0),ROUND(T22*$S$10,0))))","v":0},null,null,0,{"$f":"IF($D22=\"Pre Doctoral Fellow\",0,IF($D22=\"Post Doctoral Fellow\",0,IF($D22=\"Graduate Student\",ROUND(X22*$X$12,0),ROUND(X22*$X$10,0))))","v":0},{"$f":"IF($D22=\"Pre Doctoral Fellow\",0,IF($D22=\"Post Doctoral Fellow\",0,IF($D22=\"Graduate Student\",ROUND(Y22*$X$12,0),ROUND(Y22*$X$10,0))))","v":0},null,null,0,{"$f":"IF($D22=\"Pre Doctoral Fellow\",0,IF($D22=\"Post Doctoral Fellow\",0,IF($D22=\"Graduate Student\",ROUND(AC22*$AC$12,0),ROUND(AC22*$AC$10,0))))","v":0},{"$f":"IF($D22=\"Pre Doctoral Fellow\",0,IF($D22=\"Post Doctoral Fellow\",0,IF($D22=\"Graduate Student\",ROUND(AD22*$AC$12,0),ROUND(AD22*$AC$10,0))))","v":0},null,null,0,0,0,0,0,0]
[null,null,null,null,null,null,{"$f":"F24*E24","v":0},{"$f":"B24","v":0},{"$f":"H24*F24*(I$2/12)","v":0},{"$f":"IF(J$2>=1,ROUND(E24*$B$37*(J$2/12),0),0)","v":0},{"$f":"IF(K$2>=1,ROUND(F24*$B$37*(K$2/12),0),0)","v":0},{"$f":"IF($X$2>=1,ROUND(G24*$B$37,0),0)","v":0},{"$f":"IF($AC$2>=1,ROUND(H24*$B$37,0),0)","v":0},{"$f":"IF(N$2>=1,ROUND(B24*F24*$B$37*(N$2/12),0),0)","v":0},{"$f":"IF($D$8>=2,ROUND(J24*$B$10,0),0)","v":0},null,null,{"$f":"SUM(N24:Q24)","v":0},{"$f":"IF(S$2>=1,ROUND(B24*F24*$B$37*$B$37*(S$2/12),0),0)","v":0},{"$f":"IF($D$8>=3,ROUND(O24*$B$10,0),0)","v":0},null,null,{"$f":"SUM(S24:V24)","v":0},{"$f":"IF(X$2>=1,ROUND(B24*F24*$B$37*$B$37*$B$37*(X$2/12),0),0)","v":0},{"$f":"IF($D$8>=4,ROUND(T24*$B$10,0),0)","v":0},null,null,{"$f":"SUM(X24:AA24)","v":0},{"$f":"IF(AC$2>=1,ROUND(B24*F24*$B$37*$B$37*$B$37*$B$37*(AC$2/12),0),0)","v":0},{"$f":"IF($D$8>=5,ROUND(Y24*$B$10,0),0)","v":0},null,null,{"$f":"SUM(AC24:AF24)","v":0},0,0,0,0,{"$f":"SUM(AH24:AK24)","v":0}]
[null,null,null,null,null,null,{"$f":"IF(E24=3,\"SUM\",IF(E24=12, \"CAL\",IF(ISBLANK(E24),,\"ACAD\")))","v":0},"Fringe Benefits",{"$f":"IF($D24=\"Pre Doctoral Fellow\",0,IF($D24=\"Post Doctoral Fellow\",0,IF($D24=\"Graduate Student\",ROUND(I24*$I$12,0),IF($D24=\"Other\",ROUND(I24*$I$14,0),ROUND(I24*$I$10,0)))))","v":0},{"$f":"IF($D24=\"Pre Doctoral Fellow\",0,IF($D24=\"Post Doctoral Fellow\",0,IF($D24=\"Graduate Student\",ROUND(J24*$I$12,0),ROUND(J24*$I$10,0))))","v":0},null,null,{"$f":"SUM(I25:L25)","v":0},{"$f":"IF($D24=\"Pre Doctoral Fellow\",0,IF($D24=\"Post Doctoral Fellow\",0,IF($D24=\"Graduate Student\",ROUND(N24*$N$12,0),IF($D24=\"Other\",ROUND(N24*$N$14,0),ROUND(N24*$N$10,0)))))","v":0},{"$f":"IF($D24=\"Pre Doctoral Fellow\",0,IF($D24=\"Post Doctoral Fellow\",0,IF($D24=\"Graduate Student\",ROUND(O24*$N$12,0),ROUND(O24*$N$10,0))))","v":0},null,null,{"$f":"SUM(N25:Q25)","v":0},{"$f":"IF($D24=\"Pre Doctoral Fellow\",0,IF($D24=\"Post Doctoral Fellow\",0,IF($D24=\"Graduate Student\",ROUND(S24*$S$12,0),ROUND(S24*$S$10,0))))","v":0},{"$f":"IF($D24=\"Pre Doctoral Fellow\",0,IF($D24=\"Post Doctoral Fellow\",0,IF($D24=\"Graduate Student\",ROUND(T24*$S$12,0),ROUND(T24*$S$10,0))))","v":0},null,null,{"$f":"SUM(S25:V25)","v":0},{"$f":"IF($D24=\"Pre Doctoral Fellow\",0,IF($D24=\"Post Doctoral Fellow\",0,IF($D24=\"Graduate Student\",ROUND(X24*$X$12,0),ROUND(X24*$X$10,0))))","v":0},{"$f":"IF($D24=\"Pre Doctoral Fellow\",0,IF($D24=\"Post Doctoral Fellow\",0,IF($D24=\"Graduate Student\",ROUND(Y24*$X$12,0),ROUND(Y24*$X$10,0))))","v":0},null,null,{"$f":"SUM(X25:AA25)","v":0},{"$f":"IF($D24=\"Pre Doctoral Fellow\",0,IF($D24=\"Post Doctoral Fellow\",0,IF($D24=\"Graduate Student\",ROUND(AC24*$AC$12,0),ROUND(AC24*$AC$10,0))))","v":0},{"$f":"IF($D24=\"Pre Doctoral Fellow\",0,IF($D24=\"Post Doctoral Fellow\",0,IF($D24=\"Graduate Student\",ROUND(AD24*$AC$12,0),ROUND(AD24*$AC$10,0))))","v":0},null,null,{"$f":"SUM(AC25:AF25)","v":0},0,0,0,0,0]
[null,null,null,null,null,null,{"$f":"F26*E26","v":0},{"$f":"B26","v":0},{"$f":"H26*F26*(I$2/12)","v":0},{"$f":"IF(J$2>=1,ROUND(E26*$B$37*(J$2/12),0),0)","v":0},{"$f":"IF(K$2>=1,ROUND(F26*$B$37*(K$2/12),0),0)","v":0},{"$f":"IF($X$2>=1,ROUND(G26*$B$37,0),0)","v":0},{"$f":"IF($AC$2>=1,ROUND(H26*$B$37,0),0)","v":0},{"$f":"IF(N$2>=1,ROUND(B26*F26*$B$37*(N$2/12),0),0)","v":0},{"$f":"IF($D$8>=2,ROUND(J26*$B$10,0),0)","v":0},null,null,{"$f":"SUM(N26:Q26)","v":0},{"$f":"IF(S$2>=1,ROUND(B26*F26*$B$37*$B$37*(S$2/12),0),0)","v":0},{"$f":"IF($D$8>=3,ROUND(O26*$B$10,0),0)","v":0},null,null,{"$f":"SUM(S26:V26)","v":0},{"$f":"IF(X$2>=1,ROUND(B26*F26*$B$37*$B$37*$B$37*(X$2/12),0),0)","v":0},{"$f":"IF($D$8>=4,ROUND(T26*$B$10,0),0)","v":0},null,null,{"$f":"SUM(X26:AA26)","v":0},{"$f":"IF(AC$2>=1,ROUND(B26*F26*$B$37*$B$37*$B$37*$B$37*(AC$2/12),0),0)","v":0},{"$f":"IF($D$8>=5,ROUND(Y26*$B$10,0),0)","v":0},null,null,{"$f":"SUM(AC26:AF26)","v":0},{"$f":"I26+N26+S26+X26+AC26","v":0},{"$f":"J26+O26+T26+Y26+AD26","v":0},{"$f":"K26+P26+U26+Z26+AE26","v":0},{"$f":"L26+Q26+V26+AA26+AF26","v":0},{"$f":"SUM(AH26:AK26)","v":0}]
[null,null,null,null,null,null,{"$f":"IF(E26=3,\"SUM\",IF(E26=12, \"CAL\",IF(ISBLANK(E26),,\"ACAD\")))","v":0},"Fringe Benefits",{"$f":"IF($D26=\"Pre Doctoral Fellow\",0,IF($D26=\"Post Doctoral Fellow\",0,IF($D26=\"Graduate Student\",ROUND(I26*$I$12,0),IF($D26=\"Other\",ROUND(I26*$I$14,0),ROUND(I26*$I$10,0)))))","v":0},{"$f":"IF($D26=\"Pre Doctoral Fellow\",0,IF($D26=\"Post Doctoral Fellow\",0,IF($D26=\"Graduate Student\",ROUND(J26*$I$12,0),ROUND(J26*$I$10,0))))","v":0},null,null,{"$f":"SUM(I27:L27)","v":0},{"$f":"IF($D26=\"Pre Doctoral Fellow\",0,IF($D26=\"Post Doctoral Fellow\",0,IF($D26=\"Graduate Student\",ROUND(N26*$N$12,0),IF($D26=\"Other\",ROUND(N26*$N$14,0),ROUND(N26*$N$10,0)))))","v":0},{"$f":"IF($D26=\"Pre Doctoral Fellow\",0,IF($D26=\"Post Doctoral Fellow\",0,IF($D26=\"Graduate Student\",ROUND(O26*$N$12,0),ROUND(O26*$N$10,0))))","v":0},null,null,{"$f":"SUM(N27:Q27)","v":0},{"$f":"IF($D26=\"Pre Doctoral Fellow\",0,IF($D26=\"Post Doctoral Fellow\",0,IF($D26=\"Graduate Student\",ROUND(S26*$S$12,0),ROUND(S26*$S$10,0))))","v":0},{"$f":"IF($D26=\"Pre Doctoral Fellow\",0,IF($D26=\"Post Doctoral Fellow\",0,IF($D26=\"Graduate Student\",ROUND(T26*$S$12,0),ROUND(T26*$S$10,0))))","v":0},null,null,{"$f":"SUM(S27:V27)","v":0},{"$f":"IF($D26=\"Pre Doctoral Fellow\",0,IF($D26=\"Post Doctoral Fellow\",0,IF($D26=\"Graduate Student\",ROUND(X26*$X$12,0),ROUND(X26*$X$10,0))))","v":0},{"$f":"IF($D26=\"Pre Doctoral Fellow\",0,IF($D26=\"Post Doctoral Fellow\",0,IF($D26=\"Graduate Student\",ROUND(Y26*$X$12,0),ROUND(Y26*$X$10,0))))","v":0},null,null,{"$f":"SUM(X27:AA27)","v":0},{"$f":"IF($D26=\"Pre Doctoral Fellow\",0,IF($D26=\"Post Doctoral Fellow\",0,IF($D26=\"Graduate Student\",ROUND(AC26*$AC$12,0),ROUND(AC26*$AC$10,0))))","v":0},{"$f":"IF($D26=\"Pre Doctoral Fellow\",0,IF($D26=\"Post Doctoral Fellow\",0,IF($D26=\"Graduate Student\",ROUND(AD26*$AC$12,0),ROUND(AD26*$AC$10,0))))","v":0},null,null,{"$f":"SUM(AC27:AF27)","v":0},0,0,0,0,0]
[null,null,null,null,null,null,{"$f":"F28*E28","v":0},{"$f":"B28","v":0},{"$f":"H28*F28*(I$2/12)","v":0},{"$f":"IF(J$2>=1,ROUND(E28*$B$37*(J$2/12),0),0)","v":0},{"$f":"IF(K$2>=1,ROUND(F28*$B$37*(K$2/12),0),0)","v":0},{"$f":"IF($X$2>=1,ROUND(G28*$B$37,0),0)","v":0},{"$f":"IF($AC$2>=1,ROUND(H28*$B$37,0),0)","v":0},{"$f":"IF(N$2>=1,ROUND(B28*F28*$B$37*(N$2/12),0),0)","v":0},{"$f":"IF($D$8>=2,ROUND(J28*$B$10,0),0)","v":0},null,null,{"$f":"SUM(N28:Q28)","v":0},{"$f":"IF(S$2>=1,ROUND(B28*F28*$B$37*$B$37*(S$2/12),0),0)","v":0},{"$f":"IF($D$8>=3,ROUND(O28*$B$10,0),0)","v":0},null,null,{"$f":"SUM(S28:V28)","v":0},{"$f":"IF(X$2>=1,ROUND(B28*F28*$B$37*$B$37*$B$37*(X$2/12),0),0)","v":0},{"$f":"IF($D$8>=4,ROUND(T28*$B$10,0),0)","v":0},null,null,{"$f":"SUM(X28:AA28)","v":0},{"$f":"IF(AC$2>=1,ROUND(B28*F28*$B$37*$B$37*$B$37*$B$37*(AC$2/12),0),0)","v":0},{"$f":"IF($D$8>=5,ROUND(Y28*$B$10,0),0)","v":0},null,null,{"$f":"SUM(AC28:AF28)","v":0},0,0,0,0,{"$f":"SUM(AH28:AK28)","v":0}]
[null,null,null,null,null,null,{"$f":"IF(E28=3,\"SUM\",IF(E28=12, \"CAL\",IF(ISBLANK(E28),,\"ACAD\")))","v":0},"Fringe Benefits",{"$f":"IF($D28=\"Pre Doctoral Fellow\",0,IF($D28=\"Post Doctoral Fellow\",0,IF($D28=\"Graduate Student\",ROUND(I28*$I$12,0),IF($D28=\"Other\",ROUND(I28*$I$14,0),ROUND(I28*$I$10,0)))))","v":0},{"$f":"IF($D28=\"Pre Doctoral Fellow\",0,IF($D28=\"Post Doctoral Fellow\",0,IF($D28=\"Graduate Student\",ROUND(J28*$I$12,0),ROUND(J28*$I$10,0))))","v":0},null,null,0,{"$f":"IF($D28=\"Pre Doctoral Fellow\",0,IF($D28=\"Post Doctoral Fellow\",0,IF($D28=\"Graduate Student\",ROUND(N28*$N$12,0),IF($D28=\"Other\",ROUND(N28*$N$14,0),ROUND(N28*$N$10,0)))))","v":0},{"$f":"IF($D28=\"Pre Doctoral Fellow\",0,IF($D28=\"Post Doctoral Fellow\",0,IF($D28=\"Graduate Student\",ROUND(O28*$N$12,0),ROUND(O28*$N$10,0))))","v":0},null,null,0,{"$f":"IF($D28=\"Pre Doctoral Fellow\",0,IF($D28=\"Post Doctoral Fellow\",0,IF($D28=\"Graduate Student\",ROUND(S28*$S$12,0),ROUND(S28*$S$10,0))))","v":0},{"$f":"IF($D28=\"Pre Doctoral Fellow\",0,IF($D28=\"Post Doctoral Fellow\",0,IF($D28=\"Graduate Student\",ROUND(T28*$S$12,0),ROUND(T28*$S$10,0))))","v":0},null,null,0,{"$f":"IF($D28=\"Pre Doctoral Fellow\",0,IF($D28=\"Post Doctoral Fellow\",0,IF($D28=\"Graduate Student\",ROUND(X28*$X$12,0),ROUND(X28*$X$10,0))))","v":0},{"$f":"IF($D28=\"Pre Doctoral Fellow\",0,IF($D28=\"Post Doctoral Fellow\",0,IF($D28=\"Graduate Student\",ROUND(Y28*$X$12,0),ROUND(Y28*$X$10,0))))","v":0},null,null,0,{"$f":"IF($D28=\"Pre Doctoral Fellow\",0,IF($D28=\"Post Doctoral Fellow\",0,IF($D28=\"Graduate Student\",ROUND(AC28*$AC$12,0),ROUND(AC28*$AC$10,0))))","v":0},{"$f":"IF($D28=\"Pre Doctoral Fellow\",0,IF($D28=\"Post Doctoral Fellow\",0,IF($D28=\"Graduate Student\",ROUND(AD28*$AC$12,0),ROUND(AD28*$AC$10,0))))","v":0},null,null,0,0,0,0,0,0]
[null,null,null,null,null,null,{"$f":"F30*E30","v":0},{"$f":"B30","v":0},{"$f":"H30*F30*(I$2/12)","v":0},{"$f":"IF(J$2>=1,ROUND(E30*$B$37*(J$2/12),0),0)","v":0},{"$f":"IF(K$2>=1,ROUND(F30*$B$37*(K$2/12),0),0)","v":0},{"$f":"IF($X$2>=1,ROUND(G30*$B$37,0),0)","v":0},{"$f":"IF($AC$2>=1,ROUND(H30*$B$37,0),0)","v":0},{"$f":"IF(N$2>=1,ROUND(B30*F30*$B$37*(N$2/12),0),0)","v":0},{"$f":"IF($D$8>=2,ROUND(J30*$B$10,0),0)","v":0},null,null,{"$f":"SUM(N30:Q30)","v":0},{"$f":"IF(S$2>=1,ROUND(B30*F30*$B$37*$B$37*(S$2/12),0),0)","v":0},{"$f":"IF($D$8>=3,ROUND(O30*$B$10,0),0)","v":0},null,null,{"$f":"SUM(S30:V30)","v":0},{"$f":"IF(X$2>=1,ROUND(B30*F30*$B$37*$B$37*$B$37*(X$2/12),0),0)","v":0},{"$f":"IF($D$8>=4,ROUND(T30*$B$10,0),0)","v":0},null,null,{"$f":"SUM(X30:AA30)","v":0},{"$f":"IF(AC$2>=1,ROUND(B30*F30*$B$37*$B$37*$B$37*$B$37*(AC$2/12),0),0)","v":0},{"$f":"IF($D$8>=5,ROUND(Y30*$B$10,0),0)","v":0},null,null,{"$f":"SUM(AC30:AF30)","v":0},0,0,0,0,{"$f":"SUM(AH30:AK30)","v":0}]
[null,null,null,null,null,null,{"$f":"IF(E30=3,\"SUM\",IF(E30=12, \"CAL\",IF(ISBLANK(E30),,\"ACAD\")))","v":0},"Fringe Benefits",{"$f":"IF($D30=\"Pre Doctoral Fellow\",0,IF($D30=\"Post Doctoral Fellow\",0,IF($D30=\"Graduate Student\",ROUND(I30*$I$12,0),IF($D30=\"Other\",ROUND(I30*$I$14,0),ROUND(I30*$I$10,0)))))","v":0},{"$f":"IF($D30=\"Pre Doctoral Fellow\",0,IF($D30=\"Post Doctoral Fellow\",0,IF($D30=\"Graduate Student\",ROUND(J30*$I$12,0),ROUND(J30*$I$10,0))))","v":0},null,null,0,{"$f":"IF($D30=\"Pre Doctoral Fellow\",0,IF($D30=\"Post Doctoral Fellow\",0,IF($D30=\"Graduate Student\",ROUND(N30*$N$12,0),IF($D30=\"Other\",ROUND(N30*$N$14,0),ROUND(N30*$N$10,0)))))","v":0},{"$f":"IF($D30=\"Pre Doctoral Fellow\",0,IF($D30=\"Post Doctoral Fellow\",0,IF($D30=\"Graduate Student\",ROUND(O30*$N$12,0),ROUND(O30*$N$10,0))))","v":0},null,null,0,{"$f":"IF($D30=\"Pre Doctoral Fellow\",0,IF($D30=\"Post Doctoral Fellow\",0,IF($D30=\"Graduate Student\",ROUND(S30*$S$12,0),ROUND(S30*$S$10,0))))","v":0},{"$f":"IF($D30=\"Pre Doctoral Fellow\",0,IF($D30=\"Post Doctoral Fellow\",0,IF($D30=\"Graduate Student\",ROUND(T30*$S$12,0),ROUND(T30*$S$10,0))))","v":0},null,null,0,{"$f":"IF($D30=\"Pre Doctoral Fellow\",0,IF($D30=\"Post Doctoral Fellow\",0,IF($D30=\"Graduate Student\",ROUND(X30*$X$12,0),ROUND(X30*$X$10,0))))","v":0},{"$f":"IF($D30=\"Pre Doctoral Fellow\",0,IF($D30=\"Post Doctoral Fellow\",0,IF($D30=\"Graduate Student\",ROUND(Y30*$X$12,0),ROUND(Y30*$X$10,0))))","v":0},null,null,0,{"$f":"IF($D30=\"Pre Doctoral Fellow\",0,IF($D30=\"Post Doctoral Fellow\",0,IF($D30=\"Graduate Student\",ROUND(AC30*$AC$12,0),ROUND(AC30*$AC$10,0))))","v":0},{"$f":"IF($D30=\"Pre Doctoral Fellow\",0,IF($D30=\"Post Doctoral Fellow\",0,IF($D30=\"Graduate Student\",ROUND(AD30*$AC$12,0),ROUND(AD30*$AC$10,0))))","v":0},null,null,0,0,0,0,0,0]
[null,null,null,null,null,null,{"$f":"F32*E32","v":0},{"$f":"B32","v":0},{"$f":"H32*F32*(I$2/12)","v":0},{"$f":"IF(J$2>=1,ROUND(E32*$B$37*(J$2/12),0),0)","v":0},{"$f":"IF(K$2>=1,ROUND(F32*$B$37*(K$2/12),0),0)","v":0},{"$f":"IF($X$2>=1,ROUND(G32*$B$37,0),0)","v":0},{"$f":"IF($AC$2>=1,ROUND(H32*$B$37,0),0)","v":0},{"$f":"IF(N$2>=1,ROUND(B32*F32*$B$37*(N$2/12),0),0)","v":0},{"$f":"IF($D$8>=2,ROUND(J32*$B$10,0),0)","v":0},null,null,{"$f":"SUM(N32:Q32)","v":0},{"$f":"IF(S$2>=1,ROUND(B32*F32*$B$37*$B$37*(S$2/12),0),0)","v":0},{"$f":"IF($D$8>=3,ROUND(O32*$B$10,0),0)","v":0},null,null,{"$f":"SUM(S32:V32)","v":0},{"$f":"IF(X$2>=1,ROUND(B32*F32*$B$37*$B$37*$B$37*(X$2/12),0),0)","v":0},{"$f":"IF($D$8>=4,ROUND(T32*$B$10,0),0)","v":0},null,null,{"$f":"SUM(X32:AA32)","v":0},{"$f":"IF(AC$2>=1,ROUND(B32*F32*$B$37*$B$37*$B$37*$B$37*(AC$2/12),0),0)","v":0},{"$f":"IF($D$8>=5,ROUND(Y32*$B$10,0),0)","v":0},null,null,{"$f":"SUM(AC32:AF32)","v":0},0,0,0,0,{"$f":"SUM(AH32:AK32)","v":0}]
[null,null,null,null,null,null,{"$f":"IF(E32=3,\"SUM\",IF(E32=12, \"CAL\",IF(ISBLANK(E32),,\"ACAD\")))","v":0},"Fringe Benefits",{"$f":"IF($D32=\"Pre Doctoral Fellow\",0,IF($D32=\"Post Doctoral Fellow\",0,IF($D32=\"Graduate Student\",ROUND(I32*$I$12,0),IF($D32=\"Other\",ROUND(I32*$I$14,0),ROUND(I32*$I$10,0)))))","v":0},{"$f":"IF($D32=\"Pre Doctoral Fellow\",0,IF($D32=\"Post Doctoral Fellow\",0,IF($D32=\"Graduate Student\",ROUND(J32*$I$12,0),ROUND(J32*$I$10,0))))","v":0},null,null,0,{"$f":"IF($D32=\"Pre Doctoral Fellow\",0,IF($D32=\"Post Doctoral Fellow\",0,IF($D32=\"Graduate Student\",ROUND(N32*$N$12,0),IF($D32=\"Other\",ROUND(N32*$N$14,0),ROUND(N32*$N$10,0)))))","v":0},{"$f":"IF($D32=\"Pre Doctoral Fellow\",0,IF($D32=\"Post Doctoral Fellow\",0,IF($D32=\"Graduate Student\",ROUND(O32*$N$12,0),ROUND(O32*$N$10,0))))","v":0},null,null,0,{"$f":"IF($D32=\"Pre Doctoral Fellow\",0,IF($D32=\"Post Doctoral Fellow\",0,IF($D32=\"Graduate Student\",ROUND(S32*$S$12,0),ROUND(S32*$S$10,0))))","v":0},{"$f":"IF($D32=\"Pre Doctoral Fellow\",0,IF($D32=\"Post Doctoral Fellow\",0,IF($D32=\"Graduate Student\",ROUND(T32*$S$12,0),ROUND(T32*$S$10,0))))","v":0},null,null,0,{"$f":"IF($D32=\"Pre Doctoral Fellow\",0,IF($D32=\"Post Doctoral Fellow\",0,IF($D32=\"Graduate Student\",ROUND(X32*$X$12,0),ROUND(X32*$X$10,0))))","v":0},{"$f":"IF($D32=\"Pre Doctoral Fellow\",0,IF($D32=\"Post Doctoral Fellow\",0,IF($D32=\"Graduate Student\",ROUND(Y32*$X$12,0),ROUND(Y32*$X$10,0))))","v":0},null,null,0,{"$f":"IF($D32=\"Pre Doctoral Fellow\",0,IF($D32=\"Post Doctoral Fellow\",0,IF($D32=\"Graduate Student\",ROUND(AC32*$AC$12,0),ROUND(AC32*$AC$10,0))))","v":0},{"$f":"IF($D32=\"Pre Doctoral Fellow\",0,IF($D32=\"Post Doctoral Fellow\",0,IF($D32=\"Graduate Student\",ROUND(AD32*$AC$12,0),ROUND(AD32*$AC$10,0))))","v":0},null,null,0,0,0,0,0,0]
[null,null,null,null,null,null,{"$f":"F34*E34","v":0},{"$f":"B34","v":0},{"$f":"H34*F34*(I$2/12)","v":0},{"$f":"IF(J$2>=1,ROUND(E34*$B$37*(J$2/12),0),0)","v":0},{"$f":"IF(K$2>=1,ROUND(F34*$B$37*(K$2/12),0),0)","v":0},{"$f":"IF($X$2>=1,ROUND(G34*$B$37,0),0)","v":0},{"$f":"IF($AC$2>=1,ROUND(H34*$B$37,0),0)","v":0},{"$f":"IF(N$2>=1,ROUND(B34*F34*$B$37*(N$2/12),0),0)","v":0},{"$f":"IF($D$8>=2,ROUND(J34*$B$10,0),0)","v":0},null,null,{"$f":"SUM(N34:Q34)","v":0},{"$f":"IF(S$2>=1,ROUND(B34*F34*$B$37*$B$37*(S$2/12),0),0)","v":0},{"$f":"IF($D$8>=3,ROUND(O34*$B$10,0),0)","v":0},null,null,{"$f":"SUM(S34:V34)","v":0},{"$f":"IF(X$2>=1,ROUND(B34*F34*$B$37*$B$37*$B$37*(X$2/12),0),0)","v":0},{"$f":"IF($D$8>=4,ROUND(T34*$B$10,0),0)","v":0},null,null,{"$f":"SUM(X34:AA34)","v":0},{"$f":"IF(AC$2>=1,ROUND(B34*F34*$B$37*$B$37*$B$37*$B$37*(AC$2/12),0),0)","v":0},{"$f":"IF($D$8>=5,ROUND(Y34*$B$10,0),0)","v":0},null,null,{"$f":"SUM(AC34:AF34)","v":0},0,0,0,0,0]
[null,null,null,null,null,null,{"$f":"IF(E34=3,\"SUM\",IF(E34=12, \"CAL\",IF(ISBLANK(E34),,\"ACAD\")))","v":0},"Fringe Benefits",{"$f":"IF($D34=\"Pre Doctoral Fellow\",0,IF($D34=\"Post Doctoral Fellow\",0,IF($D34=\"Graduate Student\",ROUND(I34*$I$12,0),IF($D34=\"Other\",ROUND(I34*$I$14,0),ROUND(I34*$I$10,0)))))","v":0},{"$f":"IF($D34=\"Pre Doctoral Fellow\",0,IF($D34=\"Post Doctoral Fellow\",0,IF($D34=\"Graduate Student\",ROUND(J34*$I$12,0),ROUND(J34*$I$10,0))))","v":0},null,null,0,{"$f":"IF($D34=\"Pre Doctoral Fellow\",0,IF($D34=\"Post Doctoral Fellow\",0,IF($D34=\"Graduate Student\",ROUND(N34*$N$12,0),IF($D34=\"Other\",ROUND(N34*$N$14,0),ROUND(N34*$N$10,0)))))","v":0},{"$f":"IF($D34=\"Pre Doctoral Fellow\",0,IF($D34=\"Post Doctoral Fellow\",0,IF($D34=\"Graduate Student\",ROUND(O34*$N$12,0),ROUND(O34*$N$10,0))))","v":0},null,null,0,{"$f":"IF($D34=\"Pre Doctoral Fellow\",0,IF($D34=\"Post Doctoral Fellow\",0,IF($D34=\"Graduate Student\",ROUND(S34*$S$12,0),ROUND(S34*$S$10,0))))","v":0},{"$f":"IF($D34=\"Pre Doctoral Fellow\",0,IF($D34=\"Post Doctoral Fellow\",0,IF($D34=\"Graduate Student\",ROUND(T34*$S$12,0),ROUND(T34*$S$10,0))))","v":0},null,null,0,{"$f":"IF($D34=\"Pre Doctoral Fellow\",0,IF($D34=\"Post Doctoral Fellow\",0,IF($D34=\"Graduate Student\",ROUND(X34*$X$12,0),ROUND(X34*$X$10,0))))","v":0},{"$f":"IF($D34=\"Pre Doctoral Fellow\",0,IF($D34=\"Post Doctoral Fellow\",0,IF($D34=\"Graduate Student\",ROUND(Y34*$X$12,0),ROUND(Y34*$X$10,0))))","v":0},null,null,0,{"$f":"IF($D34=\"Pre Doctoral Fellow\",0,IF($D34=\"Post Doctoral Fellow\",0,IF($D34=\"Graduate Student\",ROUND(AC34*$AC$12,0),ROUND(AC34*$AC$10,0))))","v":0},{"$f":"IF($D34=\"Pre Doctoral Fellow\",0,IF($D34=\"Post Doctoral Fellow\",0,IF($D34=\"Graduate Student\",ROUND(AD34*$AC$12,0),ROUND(AD34*$AC$10,0))))","v":0},null,null,0,0,0,0,0,0]
[null,"inflation",null,null,null,null,"Total Salaries - F5000",null,{"$f":"SUMIF($H$18:$H$35,\"<>Fringe Benefits\",I18:I35)","v":0},0,0,0,0,0,0,0,0,0,0,0,0,0,0,0,0,0,0,0,0,0,0,0,0,0,0,0,0,0]
[null,1.02,null,null,null,null,"Total Fringe Benefits - F5990",null,{"$f":"SUMIF($H$18:$H$35,\"Fringe Benefits\",I18:I35)","v":0},0,0,0,0,0,0,0,0,0,0,0,0,0,0,0,0,0,0,0,0,0,0,0,0,0,0,0,0,0]
[null,null,null,"Total Salaries, Wages and Fringe Benefits",null,null,null,null,{"$f":"SUM(I18:I35)","v":0},0,0,0,0,0,0,0,0,0,0,0,0,0,0,0,0,0,0,0,0,0,0,0,0,0,0,0,0,0]
[null,null,"Other Direct Costs                         ",null,null,null,"ADP Computer Services / Computer Services","F6020",null,null,null,null,{"$f":"SUM(I39:L39)","v":0},null,null,null,null,{"$f":"SUM(N39:Q39)","v":0},null,null,null,null,{"$f":"SUM(S39:V39)","v":0},null,null,null,null,{"$f":"SUM(X39:AA39)","v":0},null,null,null,null,{"$f":"SUM(AC39:AF39)","v":0},{"$f":"I39+N39+S39+X39+AC39","v":0},0,0,0,{"$f":"SUM(AH39:AK39)","v":0}]
[null,null,null,null,null,null,"Alterations & Renovations","F6910",null,null,null,null,{"$f":"SUM(I40:L40)","v":0},null,null,null,null,{"$f":"SUM(N40:Q40)","v":0},null,null,null,null,0,null,null,null,null,0,null,null,null,null,0,{"$f":"I40+N40+S40+X40+AC40","v":0},0,{"$f":"K40+P40+U40+Z40+AE40","v":0},0,{"$f":"SUM(AH40:AK40)","v":0}]
[null,null,null,null,null,null,"Animal Maintenance / Animal Costs","F6003",null,null,null,null,0,null,null,null,null,0,null,null,null,null,0,null,null,null,null,0,null,null,null,null,0,0,0,0,0,0]
[null,null,null,null,null,null,"Consultant Services / Consultant & Contract Services","F6120",null,null,null,null,0,null,null,null,null,0,null,null,null,null,0,null,null,null,null,0,null,null,null,null,0,0,0,0,0,0]
[null,null,null,null,null,null,"Equipment ($5k+)","F6500",null,null,null,null,0,null,null,null,null,0,null,null,null,null,0,null,null,null,null,0,null,null,null,null,0,0,0,0,0,0]
[null,null," ",null,null,null,"Equipment Maintenance","F6510",null,null,null,null,0,null,null,null,null,0,null,null,null,null,0,null,null,null,null,0,null,null,null,null,0,0,0,0,0,0]
[null,null,null,null,null,null," Facility & Equipment Rental","F6350",null,null,null,null,0,null,null,null,null,0,null,null,null,null,0,null,null,null,null,0,null,null,null,null,0,{"$f":"I45+N45+S45+X45+AC45","v":0},{"$f":"J45+O45+T45+Y45+AD45","v":0},{"$f":"K45+P45+U45+Z45+AE45","v":0},{"$f":"L45+Q45+V45+AA45+AF45","v":0},{"$f":"SUM(AH45:AK45)","v":0}]
[null,null,null,null,null,null,"Human Subjects Costs",null,null,null,null,null,0,null,null,null,null,0,null,null,null,null,0,null,null,null,null,0,null,null,null,null,0,0,0,{"$f":"K46+P46+U46+Z46+AE46","v":0},0,0]
[null,null," ",null,null,null,"Inpatient Costs / Inpatient Care Expenses","F6128",null,null,null,null,0,null,null,null,null,0,null,null,null,null,0,null,null,null,null,0,null,null,null,null,0,0,0,0,0,0]
[null,null," ",null,null,null,"Other Costs/ Services and Other Expenses","F6000",null,null,null,null,0,null,null,null,null,0,null,null,null,null,0,null,null,null,null,0,null,null,null,null,0,0,0,0,0,0]
[null,null," ",null,null,null,"Other (excluded from base)",null,null,null,null,null,0,null,null,null,null,0,null,null,null,null,0,null,null,null,null,0,null,null,null,null,0,0,0,0,0,0]
[null,null," ",null,null,null,"Outpatient Costs / Patient Care Expenses","F6127",null,null,null,null,0,null,null,null,null,0,null,null,null,null,0,null,null,null,null,0,null,null,null,null,0,0,0,0,0,0]
[null,null,null,null,null,null,"Participant Support","F6101",null,null,null,null,0,null,null,null,null,0,null,null,null,null,0,null,null,null,null,0,null,null,null,null,0,0,0,0,0,0]
[null,null,null,null,null,null,"Publication Costs","F6011",null,null,null,null,0,null,null,null,null,0,null,null,null,null,0,null,null,null,null,0,null,null,null,null,0,0,0,0,0,0]
[null,null,null,null,null,null,"Supplies","F6002",null,null,null,null,0,null,null,null,null,0,null,null,null,null,0,null,null,null,null,0,null,null,null,null,0,0,0,0,0,0]
[null,null,null,null,null,null,"Supplies (Genomic Arrays, $50K max.)",null,null,null,null,null,0,null,null,null,null,0,null,null,null,null,0,null,null,null,null,0,null,null,null,null,0,0,0,0,0,0]
[null,null,null,null,null,null,"Travel Domestic / Domestic Travel","F6050",null,null,null,null,0,null,null,null,null,0,null,null,null,null,0,null,null,null,null,0,null,null,null,null,0,0,0,0,0,{"$f":"SUM(AH55:AK55)","v":0}]
[null,null,null,null,null,null,"Travel Foreign / Foreign Travel","F6052",null,null,null,null,0,null,null,null,null,0,null,null,null,null,0,null,null,null,null,0,null,null,null,null,0,0,0,0,0,0]
[null,null,null,null,null,null,"Tuition","F6532",null,null,null,null,0,null,null,null,null,0,null,null,null,null,0,null,null,null,null,0,null,null,null,null,0,0,0,0,0,0]
[null,null,null,null,null,null,"Vendor Contracts / Contract Services","F6120",null,null,null,null,0,null,null,null,null,0,null,null,null,null,0,null,null,null,null,0,null,null,null,null,0,0,0,0,0,0]
[null,null,null,null,null,null,{"$f":"F86","v":"Subcontract 1"},null,{"$f":"I86+I87","v":0},null,null,null,0,{"$f":"IF($D$8>=2,N86+N87,0)","v":0},null,null,null,{"$f":"SUM(N59:Q59)","v":0},{"$f":"IF($D$8>=3,S86+S87,0)","v":0},null,null,null,{"$f":"SUM(S59:V59)","v":0},{"$f":"IF($D$8>=4,X86+X87,0)","v":0},null,null,null,{"$f":"SUM(X59:AA59)","v":0},{"$f":"IF($D$8>=5,AC86+AC87,0)","v":0},null,null,null,{"$f":"SUM(AC59:AF59)","v":0},0,0,0,0,{"$f":"SUM(AH59:AK59)","v":0}]
[null,null,null,null,null,null,{"$f":"F89","v":"Subcontract 2"},null,{"$f":"I89+I90","v":0},null,null,null,{"$f":"SUM(I60:L60)","v":0},{"$f":"IF($D$8>=2,N89+N90,0)","v":0},null,null,null,0,{"$f":"IF($D$8>=3,S89+S90,0)","v":0},null,null,null,0,{"$f":"IF($D$8>=4,X89+X90,0)","v":0},null,null,null,0,{"$f":"IF($D$8>=5,AC89+AC90,0)","v":0},null,null,null,0,0,0,0,0,0]
[null,null,null,null,null,null,{"$f":"F92","v":"Subcontract 3"},null,{"$f":"I92+I93","v":0},null,null,null,{"$f":"SUM(I61:L61)","v":0},{"$f":"IF($D$8>=2,N92+N93,0)","v":0},null,null,null,0,{"$f":"IF($D$8>=3,S92+S93,0)","v":0},null,null,null,0,{"$f":"IF($D$8>=4,X92+X93,0)","v":0},null,null,null,0,{"$f":"IF($D$8>=5,AC92+AC93,0)","v":0},null,null,null,0,0,0,0,0,0]
[null,null,null,null,null,null,{"$f":"F95","v":"Subcontract 4"},null,{"$f":"I95+I96","v":0},null,null,null,{"$f":"SUM(I62:L62)","v":0},{"$f":"IF($D$8>=2,N95+N96,0)","v":0},null,null,null,0,{"$f":"IF($D$8>=3,S95+S96,0)","v":0},null,null,null,0,{"$f":"IF($D$8>=4,X95+X96,0)","v":0},null,null,null,0,{"$f":"IF($D$8>=5,AC95+AC96,0)","v":0},null,null,null,0,0,0,0,0,0]
[null,null,null,"Total Other Direct Costs",null,null,null,null,{"$f":"SUM(I39:I62)","v":0},{"$f":"SUM(J39:J62)","v":0},{"$f":"SUM(K39:K62)","v":0},{"$f":"SUM(L39:L62)","v":0},{"$f":"SUM(I63:L63)","v":0},{"$f":"SUM(N39:N62)","v":0},{"$f":"SUM(O39:O62)","v":0},{"$f":"SUM(P39:P62)","v":0},{"$f":"SUM(Q39:Q62)","v":0},{"$f":"SUM(N63:Q63)","v":0},{"$f":"SUM(S39:S62)","v":0},{"$f":"SUM(T39:T62)","v":0},{"$f":"SUM(U39:U62)","v":0},{"$f":"SUM(V39:V62)","v":0},{"$f":"SUM(S63:V63)","v":0},{"$f":"SUM(X39:X62)","v":0},{"$f":"SUM(Y39:Y62)","v":0},{"$f":"SUM(Z39:Z62)","v":0},{"$f":"SUM(AA39:AA62)","v":0},{"$f":"SUM(X63:AA63)","v":0},{"$f":"SUM(AC39:AC62)","v":0},{"$f":"SUM(AD39:AD62)","v":0},{"$f":"SUM(AE39:AE62)","v":0},{"$f":"SUM(AF39:AF62)","v":0},{"$f":"SUM(AG39:AG62)","v":0},0,0,0,0,0]
[null,null,"Total Costs Requested",null,null,null,null,null,{"$f":"I63+I38","v":0},{"$f":"J63+J38","v":0},{"$f":"K63+K38","v":0},{"$f":"L63+L38","v":0},{"$f":"SUM(I64:L64)","v":0},{"$f":"N63+N38","v":0},{"$f":"O63+O38","v":0},{"$f":"P63+P38","v":0},{"$f":"Q63+Q38","v":0},{"$f":"SUM(N64:Q64)","v":0},{"$f":"S63+S38","v":0},{"$f":"T63+T38","v":0},{"$f":"U63+U38","v":0},{"$f":"V63+V38","v":0},{"$f":"SUM(S64:V64)","v":0},{"$f":"X63+X38","v":0},{"$f":"Y63+Y38","v":0},{"$f":"Z63+Z38","v":0},{"$f":"AA63+AA38","v":0},{"$f":"SUM(X64:AA64)","v":0},{"$f":"AC63+AC38","v":0},{"$f":"AD63+AD38","v":0},{"$f":"AE63+AE38","v":0},{"$f":"AF63+AF38","v":0},{"$f":"SUM(AC64:AF64)","v":0},0,0,0,0,{"$f":"SUM(AH64:AK64)","v":0}]
[null,null,"F&A Base Exclusions MTDC Base",null,null,null,"Alterations & Renovations","F6910",{"$f":"-I40","v":0},{"$f":"-J40","v":0},null,{"$f":"-L40","v":0},{"$f":"SUM(I65:L65)","v":0},{"$f":"-N40","v":0},{"$f":"-O40","v":0},null,{"$f":"-Q40","v":0},0,{"$f":"-S40","v":0},{"$f":"-T40","v":0},null,{"$f":"-V40","v":0},{"$f":"SUM(S65:V65)","v":0},{"$f":"-X40","v":0},{"$f":"-Y40","v":0},null,{"$f":"-AA40","v":0},{"$f":"SUM(X65:AA65)","v":0},{"$f":"-AC40","v":0},{"$f":"-AD40","v":0},null,{"$f":"-AF40","v":0},{"$f":"SUM(AC65:AF65)","v":0},0,0,0,0,{"$f":"SUM(AH65:AK65)","v":0}]
[null,null,null,null,null,null,"Equipment (over $5,000)","F6500",{"$f":"-I43","v":0},{"$f":"-J43","v":0},null,{"$f":"-L43","v":0},0,{"$f":"-N43","v":0},{"$f":"-O43","v":0},null,{"$f":"-Q43","v":0},0,{"$f":"-S43","v":0},{"$f":"-T43","v":0},null,{"$f":"-V43","v":0},0,{"$f":"-X43","v":0},{"$f":"-Y43","v":0},null,{"$f":"-AA43","v":0},0,{"$f":"-AC43","v":0},{"$f":"-AD43","v":0},null,{"$f":"-AF43","v":0},0,0,0,0,0,{"$f":"SUM(AH66:AK66)","v":0}]
[null,null,null,null,null,null,"Facility User Fee","F6350",{"$f":"-I45","v":0},{"$f":"-J45","v":0},null,{"$f":"-L45","v":0},0,{"$f":"-N45","v":0},{"$f":"-O45","v":0},null,{"$f":"-Q45","v":0},0,{"$f":"-S45","v":0},{"$f":"-T45","v":0},null,{"$f":"-V45","v":0},0,{"$f":"-X45","v":0},{"$f":"-Y45","v":0},null,{"$f":"-AA45","v":0},0,{"$f":"-AC45","v":0},{"$f":"-AD45","v":0},null,{"$f":"-AF45","v":0},0,0,0,0,0,{"$f":"SUM(AH67:AK67)","v":0}]
[null,null,null,null,null,null,"Inpatient Costs","F6128",{"$f":"-I47","v":0},{"$f":"-J47","v":0},null,{"$f":"-L47","v":0},0,{"$f":"-N47","v":0},{"$f":"-O47","v":0},null,{"$f":"-Q47","v":0},0,{"$f":"-S47","v":0},{"$f":"-T47","v":0},null,{"$f":"-V47","v":0},0,{"$f":"-X47","v":0},{"$f":"-Y47","v":0},null,{"$f":"-AA47","v":0},0,{"$f":"-AC47","v":0},{"$f":"-AD47","v":0},null,{"$f":"-AF47","v":0},0,0,0,0,0,0]
[null,null,null,null,null,null,"Other (excluded from base)",null,{"$f":"-I49","v":0},0,null,{"$f":"-L49","v":0},0,{"$f":"-N49","v":0},0,null,{"$f":"-Q49","v":0},0,{"$f":"-S49","v":0},0,null,{"$f":"-V49","v":0},0,{"$f":"-X49","v":0},0,null,{"$f":"-AA49","v":0},0,{"$f":"-AC49","v":0},0,null,{"$f":"-AF49","v":0},0,0,0,0,0,0]
[null,null,null,null,null,null,"Outpatient Costs","F6127",0,0,null,{"$f":"-L50","v":0},0,0,0,null,{"$f":"-Q50","v":0},0,0,0,null,{"$f":"-V50","v":0},0,0,0,null,{"$f":"-AA50","v":0},0,0,0,null,{"$f":"-AF50","v":0},0,0,0,0,0,0]
[null,null,null,null,null,null,"Paricipant Support","F6101",{"$f":"-I51","v":0},0,null,{"$f":"-L51","v":0},0,0,0,null,{"$f":"-Q51","v":0},0,0,0,null,{"$f":"-V51","v":0},0,0,0,null,{"$f":"-AA51","v":0},0,0,0,null,{"$f":"-AF51","v":0},0,0,0,0,0,0]
[null,null,null,null,null,null,"Tuition","F5632",{"$f":"-I57","v":0},{"$f":"-J51","v":0},null,{"$f":"-L51","v":0},{"$f":"SUM(I72:L72)","v":0},{"$f":"-N57","v":0},{"$f":"-O51","v":0},null,{"$f":"-Q51","v":0},{"$f":"SUM(N72:Q72)","v":0},{"$f":"-S57","v":0},{"$f":"-T51","v":0},null,{"$f":"-V51","v":0},{"$f":"SUM(S72:V72)","v":0},{"$f":"-X57","v":0},{"$f":"-Y51","v":0},null,{"$f":"-AA51","v":0},{"$f":"SUM(X72:AA72)","v":0},{"$f":"-AC57","v":0},{"$f":"-AD51","v":0},null,{"$f":"-AF51","v":0},{"$f":"SUM(AC72:AF72)","v":0},{"$f":"I72+N72+S72+X72+AC72","v":0}]
[null,null,null,null,null,null,{"$f":"G59","v":"Subcontract 1"},null,{"$f":"IF(I59>25000,25000-I59,0)","v":0},null,null,null,0,{"$f":"IF((I59+N59)<25000,0,IF(I59>25000,-N59,IF(I59<25000,(25000-I59)-N59)))","v":0},null,null,null,{"$f":"SUM(N73:Q73)","v":0},{"$f":"IF((I59+N59+S59)<25000,0,IF(I59+N59>25000,-S59,IF(I59+N59<25000,(25000-I59-N59)-S59)))","v":0},null,null,null,{"$f":"SUM(S73:V73)","v":0},{"$f":"IF((I59+N59+S59+X59)<25000,0,IF(I59+N59+S59>25000,-X59,IF(I59+N59+S59<25000,(25000-I59-N59-S59)-X59)))","v":0},null,null,null,{"$f":"SUM(X73:AA73)","v":0},{"$f":"IF((I59+N59+S59+X59+AC59)<25000,0,IF(I59+N59+S59+X59>25000,-AC59,IF(I59+N59+S59+X59<25000,(25000-I59-N59-S59-X59)-AC59)))","v":0},null,null,null,{"$f":"SUM(AC73:AF73)","v":0},0,null,null,null,0]
[null,null,null,null,null,null,{"$f":"G60","v":"Subcontract 2"},null,{"$f":"IF(I60>25000,25000-I60,0)","v":0},null,null,null,0,{"$f":"IF((I60+N60)<25000,0,IF(I60>25000,-N60,IF(I60<25000,(25000-I60)-N60)))","v":0},null,null,null,0,{"$f":"IF((I60+N60+S60)<25000,0,IF(I60+N60>25000,-S60,IF(I60+N60<25000,(25000-I60-N60)-S60)))","v":0},null,null,null,0,{"$f":"IF((I60+N60+S60+X60)<25000,0,IF(I60+N60+S60>25000,-X60,IF(I60+N60+S60<25000,(25000-I60-N60-S60)-X60)))","v":0},null,null,null,0,{"$f":"IF((I60+N60+S60+X60+AC60)<25000,0,IF(I60+N60+S60+X60>25000,-AC60,IF(I60+N60+S60+X60<25000,(25000-I60-N60-S60-X60)-AC60)))","v":0},null,null,null,0,0,null,null,null,0]
[null,null,null,null,null,null,{"$f":"G61","v":"Subcontract 3"},null,{"$f":"IF(I61>25000,25000-I61,0)","v":0},null,null,null,0,{"$f":"IF((I61+N61)<25000,0,IF(I61>25000,-N61,IF(I61<25000,(25000-I61)-N61)))","v":0},null,null,null,0,{"$f":"IF((I61+N61+S61)<25000,0,IF(I61+N61>25000,-S61,IF(I61+N61<25000,(25000-I61-N61)-S61)))","v":0},null,null,null,0,{"$f":"IF((I61+N61+S61+X61)<25000,0,IF(I61+N61+S61>25000,-X61,IF(I61+N61+S61<25000,(25000-I61-N61-S61)-X61)))","v":0},null,null,null,0,{"$f":"IF((I61+N61+S61+X61+AC61)<25000,0,IF(I61+N61+S61+X61>25000,-AC61,IF(I61+N61+S61+X61<25000,(25000-I61-N61-S61-X61)-AC61)))","v":0},null,null,null,0,0,null,null,null,0]
[null,null,null,null,null,null,{"$f":"G62","v":"Subcontract 4"},null,{"$f":"IF(I62>25000,25000-I62,0)","v":0},null,null,null,0,{"$f":"IF((I62+N62)<25000,0,IF(I62>25000,-N62,IF(I62<25000,(25000-I62)-N62)))","v":0},null,null,null,0,{"$f":"IF((I62+N62+S62)<25000,0,IF(I62+N62>25000,-S62,IF(I62+N62<25000,(25000-I62-N62)-S62)))","v":0},null,null,null,0,{"$f":"IF((I62+N62+S62+X62)<25000,0,IF(I62+N62+S62>25000,-X62,IF(I62+N62+S62<25000,(25000-I62-N62-S62)-X62)))","v":0},null,null,null,0,{"$f":"IF((I62+N62+S62+X62+AC62)<25000,0,IF(I62+N62+S62+X62>25000,-AC62,IF(I62+N62+S62+X62<25000,(25000-I62-N62-S62-X62)-AC62)))","v":0},null,null,null,0,0,null,null,null,0]
[null,null,"Total Exclusions from Base",null,null,null,null,null,{"$f":"SUM(I65:I76)","v":0},0,0,0,0,0,0,0,0,0,0,0,0,0,0,0,0,0,0,0,0,0,0,0,0,0,0,0,0,0]
[null,null,"F&A Base",null,null,null,null,null,{"$f":"I64+I77","v":0},{"$f":"J64+J77","v":0},{"$f":"K64+K77","v":0},{"$f":"L64+L77","v":0},{"$f":"SUM(I78:L78)","v":0},{"$f":"N64+N77","v":0},{"$f":"O64+O77","v":0},{"$f":"P64+P77","v":0},{"$f":"Q64+Q77","v":0},0,{"$f":"S64+S77","v":0},{"$f":"T64+T77","v":0},{"$f":"U64+U77","v":0},{"$f":"V64+V77","v":0},0,{"$f":"X64+X77","v":0},{"$f":"Y64+Y77","v":0},{"$f":"Z64+Z77","v":0},{"$f":"AA64+AA77","v":0},0,{"$f":"AC64+AC77","v":0},{"$f":"AD64+AD77","v":0},{"$f":"AE64+AE77","v":0},{"$f":"AF64+AF77","v":0},0,{"$f":"I78+N78+S78+X78+AC78","v":0},{"$f":"J78+O78+T78+Y78+AD78","v":0},{"$f":"K78+P78+U78+Z78+AE78","v":0},{"$f":"L78+Q78+V78+AA78+AF78","v":0},{"$f":"SUM(AH78:AK78)","v":0}]
[null,null,null,"Sponsor Rate","Sponsor Base","UVM Rate","UVM Base",null,{"$f":"ROUND(I78*I8,0)","v":0},null,null,null,{"$f":"I79","v":0},{"$f":"ROUND(N78*N8,0)","v":0},null,null,null,{"$f":"N79","v":0},{"$f":"ROUND(S78*S8,0)","v":0},null,null,null,{"$f":"S79","v":0},{"$f":"ROUND(X78*X8,0)","v":0},null,null,null,{"$f":"X79","v":0},{"$f":"ROUND(AC78*AC8,0)","v":0},null,null,null,{"$f":"AC79","v":0},{"$f":"I79+N79+S79+X79+AC79","v":0},null,null,null,{"$f":"ROUND(AL78*AL8,0)","v":0}]
[null,null,"F&A Rate","Varies",null,"Varies"]
[null,null,"Total Costs Requested",null,null,null,null,null,{"$f":"I64+I79","v":0},{"$f":"J64+J80","v":0},{"$f":"K64+K80","v":0},{"$f":"L64+L80","v":0},{"$f":"SUM(I81:L81)","v":0},{"$f":"N64+N79","v":0},{"$f":"O64+O80","v":0},{"$f":"P64+P80","v":0},{"$f":"Q64+Q80","v":0},{"$f":"SUM(N81:Q81)","v":0},{"$f":"S64+S79","v":0},{"$f":"T64+T80","v":0},{"$f":"U64+U80","v":0},{"$f":"V64+V80","v":0},{"$f":"SUM(S81:V81)","v":0},{"$f":"X64+X79","v":0},{"$f":"Y64+Y80","v":0},{"$f":"Z64+Z80","v":0},{"$f":"AA64+AA80","v":0},{"$f":"SUM(X81:AA81)","v":0},{"$f":"AC64+AC79","v":0},{"$f":"AD64+AD80","v":0},{"$f":"AE64+AE80","v":0},{"$f":"AF64+AF80","v":0},{"$f":"SUM(AC81:AF81)","v":0},{"$f":"I81+N81+S81+X81+AC81","v":0},0,0,0,{"$f":"SUM(AH81:AK81)","v":0}]
[null,null,"    Unrecovered F&A",null,null,null,null,null,{"$f":"ROUND(I78*I8-I79,0)","v":0},{"$f":"ROUND(J78*$F$80-J79,0)","v":{"$error":"#VALUE!"}},{"$error":"#VALUE!"},{"$error":"#VALUE!"},{"$f":"SUM(I82:L82)","v":{"$error":"#VALUE!"}},{"$f":"ROUND(N78*N8-N79,0)","v":0},{"$f":"ROUND(O78*$F$80-O79,0)","v":{"$error":"#VALUE!"}},{"$error":"#VALUE!"},{"$error":"#VALUE!"},{"$f":"SUM(N82:Q82)","v":{"$error":"#VALUE!"}},{"$f":"ROUND(S78*S8-S79,0)","v":0},{"$f":"ROUND(T78*$F$80-T79,0)","v":{"$error":"#VALUE!"}},{"$error":"#VALUE!"},{"$error":"#VALUE!"},{"$f":"SUM(S82:V82)","v":{"$error":"#VALUE!"}},{"$f":"ROUND(X78*X8-X79,0)","v":0},{"$f":"ROUND(Y78*$F$80-Y79,0)","v":{"$error":"#VALUE!"}},{"$error":"#VALUE!"},{"$error":"#VALUE!"},{"$f":"SUM(X82:AA82)","v":{"$error":"#VALUE!"}},{"$f":"ROUND(AC78*AC8-AC79,0)","v":0},{"$f":"ROUND(AD78*$F$80-AD79,0)","v":{"$error":"#VALUE!"}},{"$error":"#VALUE!"},{"$error":"#VALUE!"},{"$f":"SUM(AC82:AF82)","v":{"$error":"#VALUE!"}},0,{"$error":"#VALUE!"},{"$error":"#VALUE!"},{"$error":"#VALUE!"},{"$f":"ROUND(AL78*AL8-AL79,0)","v":0}]
[null,null,"    Total F&A",null,null,null,null,null,{"$f":"I79+I82","v":0},{"$f":"J82+J79","v":{"$error":"#VALUE!"}},{"$f":"K82+K79","v":{"$error":"#VALUE!"}},{"$f":"L82+L79","v":{"$error":"#VALUE!"}},{"$f":"SUM(I83:L83)","v":{"$error":"#VALUE!"}},{"$f":"N79+N82","v":0},{"$f":"O82+O79","v":{"$error":"#VALUE!"}},{"$f":"P82+P79","v":{"$error":"#VALUE!"}},{"$f":"Q82+Q79","v":{"$error":"#VALUE!"}},{"$f":"SUM(N83:Q83)","v":{"$error":"#VALUE!"}},{"$f":"S79+S82","v":0},{"$f":"T82+T79","v":{"$error":"#VALUE!"}},{"$f":"U82+U79","v":{"$error":"#VALUE!"}},{"$f":"V82+V79","v":{"$error":"#VALUE!"}},{"$f":"SUM(S83:V83)","v":{"$error":"#VALUE!"}},{"$f":"X79+X82","v":0},{"$f":"Y82+Y79","v":{"$error":"#VALUE!"}},{"$f":"Z82+Z79","v":{"$error":"#VALUE!"}},{"$f":"AA82+AA79","v":{"$error":"#VALUE!"}},{"$f":"SUM(X83:AA83)","v":{"$error":"#VALUE!"}},{"$f":"AC79+AC82","v":0},{"$f":"AD82+AD79","v":{"$error":"#VALUE!"}},{"$f":"AE82+AE79","v":{"$error":"#VALUE!"}},{"$f":"AF82+AF79","v":{"$error":"#VALUE!"}},{"$f":"SUM(AC83:AF83)","v":{"$error":"#VALUE!"}},0,{"$error":"#VALUE!"},{"$error":"#VALUE!"},{"$error":"#VALUE!"}]
[null,null,"Total Project Costs",null,null,null,null,null,{"$f":"I81+I82","v":0},{"$f":"J81+J82","v":{"$error":"#VALUE!"}},{"$error":"#VALUE!"},{"$error":"#VALUE!"},{"$error":"#VALUE!"},0,{"$error":"#VALUE!"},{"$error":"#VALUE!"},{"$error":"#VALUE!"},{"$error":"#VALUE!"},0,{"$error":"#VALUE!"},{"$error":"#VALUE!"},{"$error":"#VALUE!"},{"$error":"#VALUE!"},0,{"$error":"#VALUE!"},{"$error":"#VALUE!"},{"$error":"#VALUE!"},{"$error":"#VALUE!"},0,{"$error":"#VALUE!"},{"$error":"#VALUE!"},{"$error":"#VALUE!"},{"$error":"#VALUE!"},0,{"$error":"#VALUE!"},{"$error":"#VALUE!"},{"$error":"#VALUE!"}]
[]
[null,null,null,null,null,"Subcontract 1",null,"Direct",null,null,{"$f":"F86","v":"Subcontract 1"},null,"Direct",null,null,{"$f":"K86","v":"Subcontract 1"},null,"Direct",null,null,{"$f":"P86","v":"Subcontract 1"},null,"Direct",null,null,{"$f":"U86","v":"Subcontract 1"},null,"Direct",null,null,{"$f":"Z86","v":"Subcontract 1"},null,"Direct",{"$f":"I86+N86+S86+X86+AC86","v":0}]
[null,null,null,null,null,null,null,"F&A",null,null,null,null,"F&A",null,null,null,null,"F&A",null,null,null,null,"F&A",null,null,null,null,"F&A",null,null,null,null,"F&A",0]
[null,null,null,null,null,null,null,"Total",{"$f":"I86+I87","v":0},null,null,null,"Total",{"$f":"N86+N87","v":0},null,null,null,"Total",{"$f":"S86+S87","v":0},null,null,null,"Total",{"$f":"X86+X87","v":0},null,null,null,"Total",{"$f":"AC86+AC87","v":0},null,null,null,"Total",0]
[null,null,null,null,null,"Subcontract 2",null,"Direct",null,null,{"$f":"F89","v":"Subcontract 2"},null,"Direct",null,null,{"$f":"K89","v":"Subcontract 2"},null,"Direct",null,null,{"$f":"P89","v":"Subcontract 2"},null,"Direct",null,null,{"$f":"U89","v":"Subcontract 2"},null,"Direct",null,null,{"$f":"Z89","v":"Subcontract 2"},null,"Direct",0]
[null,null,null,null,null,null,null,"F&A",null,null,null,null,"F&A",null,null,null,null,"F&A",null,null,null,null,"F&A",null,null,null,null,"F&A",null,null,null,null,"F&A",0]
[null,null,null,null,null,null,null,"Total",{"$f":"I89+I90","v":0},null,null,null,"Total",{"$f":"N89+N90","v":0},null,null,null,"Total",{"$f":"S89+S90","v":0},null,null,null,"Total",{"$f":"X89+X90","v":0},null,null,null,"Total",{"$f":"AC89+AC90","v":0},null,null,null,"Total",0]
[null,null,null,null,null,"Subcontract 3",null,"Direct",null,null,{"$f":"F92","v":"Subcontract 3"},null,"Direct",null,null,{"$f":"K92","v":"Subcontract 3"},null,"Direct",null,null,{"$f":"P92","v":"Subcontract 3"},null,"Direct",null,null,{"$f":"U92","v":"Subcontract 3"},null,"Direct",null,null,{"$f":"Z92","v":"Subcontract 3"},null,"Direct",0]
[null,null,null,null,null,null,null,"F&A",null,null,null,null,"F&A",null,null,null,null,"F&A",null,null,null,null,"F&A",null,null,null,null,"F&A",null,null,null,null,"F&A",0]
[null,null,null,null,null,null,null,"Total",{"$f":"I92+I93","v":0},null,null,null,"Total",{"$f":"N92+N93","v":0},null,null,null,"Total",{"$f":"S92+S93","v":0},null,null,null,"Total",{"$f":"X92+X93","v":0},null,null,null,"Total",{"$f":"AC92+AC93","v":0},null,null,null,"Total",0]
[null,null,null,null,null,"Subcontract 4",null,"Direct",null,null,{"$f":"F95","v":"Subcontract 4"},null,"Direct",null,null,{"$f":"K95","v":"Subcontract 4"},null,"Direct",null,null,{"$f":"P95","v":"Subcontract 4"},null,"Direct",null,null,{"$f":"U95","v":"Subcontract 4"},null,"Direct",null,null,{"$f":"Z95","v":"Subcontract 4"},null,"Direct",0]
[null,null,null,null,null,null,null,"F&A",null,null,null,null,"F&A",null,null,null,null,"F&A",null,null,null,null,"F&A",null,null,null,null,"F&A",null,null,null,null,"F&A",0]
[null,null,null,null,null,null,null,"Total",{"$f":"I95+I96","v":0},null,null,null,"Total",{"$f":"N95+N96","v":0},null,null,null,"Total",{"$f":"S95+S96","v":0},null,null,null,"Total",{"$f":"X95+X96","v":0},null,null,null,"Total",{"$f":"AC95+AC96","v":0},null,null,null,"Total",0]
[null,null,null,null,null,null,null,null,"YR1",null,null,null,null,"YR2",null,null,null,null,"YR3",null,null,null,null,"YR4",null,null,null,null,"YR5"]
[null,null,"Quarter 1 Forecasted Expenses (as percent of yearly budget)"]
[null,null,"Quarter 2 Forecasted Expenses (as percent of yearly budget)"]
[null,null,"Quarter 3 Forecasted Expenses (as percent of yearly budget)"]
[null,null,"Quarter 4 Forecasted Expenses (as percent of yearly budget)"]

{"sheet":"COI Disclosure Form","index":1,"n_rows":76,"n_cols":11,"rows_kept":76,"cut":false,"hidden":true,"merged":[[38,1,39,14],[1,1,1,14],[2,1,2,14],[3,1,5,14],[7,6,7,14],[11,6,11,14],[14,1,14,14],[16,4,16,14],[24,4,24,14],[26,4,27,14],[29,1,30,14],[33,1,35,14],[66,1,68,14],[70,1,70,14],[42,1,43,14],[45,10,45,14],[49,1,50,14],[55,6,55,14],[58,6,58,14],[61,1,63,14]]}
[]
[null,"UNIVERSITY OF VERMONT"]
[null,"Investigator's Statement of Significant Related Financial Interest for Sponsored Projects "]
[null,"This form is to be completed by Investigators with significant related financial interests who are involved in a University sponsored project.  This form is to be completed before the project is initiated and annually thereafter for the duration of the project or when new interests arise.                                                                                                                                             Please return to Ruth Farrell, Assoc. VP for Research Administration, Office of Sponsored Programs, 340 Waterman Building."]
[]
[]
[]
[null,"Name of Investigator Making Disclosure:",null,null,null,null," "]
[]
[null,"Department",null,null," ",null,null,null,null,"Email address"]
[]
[null,"Name of Principal Investigator (if different):"]
[]
[null,"Title of Proposal or Award and Award Number if known:"]
[null," "]
[]
[null,"Sponsor:",null,null," "]
[]
[null,"Reason for Disclosure: ",null,null,"      New Funding   ",null,"     New Investigator   ",null,"    New Interest"]
[null,null,null,null,"      Annual disclosure for continuation of Contract or Grant #"]
[]
[]
[null,"Please provide the following information about the entity in which you have a financial interest:"]
[]
[null,"Name of Entity:"]
[]
[null,"Principal Business"]
[null,"       or Area of  Specialty:"]
[]
[null,"A.      MANAGEMENT POSITION:  Are you, your spouse and/or dependent children a director, officer, partner, or employee of, or do you hold any position of management, in the entity listed above?"]
[]
[null,null,"    No","    YES","If yes, specify position:"]
[]
[null,"B.       INCOME:  Have you, your spouse, and/or dependent children received $10,000 or more in income in the last 12 months from the entity listed in part A?  (\"Income\" includes any anticipated payment such as salary or consulting fees but does not include any salary or summer salary paid by the University with funds provided by the entity listed above.)"]
[]
[]
[null,null,"    No","    YES"]
[]
[null,"C.       ANTICIPATED INCOME:  Do you, your spouse, and/or dependent children anticipate receiving income of $10,000 or more in the next 12 months from the entity listed above?"]
[]
[null,null,"    No","    YES"]
[]
[null,"D.      INVESTMENT:  Do you, your spouse and/or dependent children have an interest or hold equity (ownership interest, stock, or stock options) which exceeds $10,000 in monetary value or 5% of the total value of the company?"]
[]
[null,null,"    No","    YES"]
[null,null,"Please indicate type:     Stock       Stock options       Bonds       Other (specify):"]
[null,null,"Percentage of total value of the company your interest represents (if applicable):"]
[]
[null,"E.       INTELLECTUAL PROPERTY:  "]
[null,"1. Does the entity listed above hold rights to a pending patent application, issued patent, or license to an invention; copyright of software, or other intellectual property which you, your spouse or dependent children have developed?"]
[]
[null,null,"    No","    YES, and the application, patent, or license is NOT from the University"]
[null,null,null,"    YES, but the license is from the University"]
[]
[null,"2. Does the entity listed above manufacture, sell or distribute any drug, vaccine, device, or any other product involved in the proposed project?"]
[null,null,"    No","    YES","If yes, specify:"]
[]
[null,"F. SUBCONTRACTOR:  Is the entity listed above proposed as a subcontractor or consortium member, lessor or otherwise involved in the proposed project?"]
[null,null,"    No","    YES","If yes, specify: "]
[]
[null,"G. Describe how any financial interest disclosed above may be or appear to be affected by the design, conduct, or reporting of the research."]
[]
[]
[]
[]
[null,"H.  What plans or actions do you think should be considered to reduce or eliminate the conflict?  Describe (attach additional pages if necessary):  "]
[]
[]
[]
[]
[null,"Verification"]
[]
[null,null,"I declare that I have used all reasonable diligence in preparing this Statement and to the best of my knowledge it is true and complete."]
[]
[]
[null,null,null,"Signature__________________________________",null,null,null,null,null,null,"Executed on  ___ ___ /___ ___ /___ ___ ___ ___"]

{"sheet":"Lookups","index":2,"n_rows":1195,"n_cols":14,"rows_kept":1195,"cut":false,"hidden":false,"merged":[]}
["Last updated on 05/27/15 to combine college and departments into one field."]
["Do not delete - Look Up Values for Routing Form and Budget Worksheet - password protected - password = password"]
[]
["Sponsor and PeopleSoft ID","UVM Rate Type Used","Account","Operating Unit","College and Department","Fund","Source Values for Chartstrings","Function","Program_Center","Property","Budget Roles","Budget F&A Bases","Bases","Role Type"]
["select","select","select","select","select","select","select",null,"select","select","PD/PI","Base A MTDC","MTDC","Key Personnel"]
["3M Company - 2877","Research on campus ONCR","F5000 - Personnel Salary","01 - General University","BSAD - School of Business Administration - 58000","100 - UNR General Fund","100001 General Operating","101 - Tuition & Fees","Unspecified Program - 0000","0000 - Unspecified Property","Co-PD/PI","Base B TDC","TDC ","Other Significant Contributors"]
["A&C Realty LLC. - 60","Research off campus local OFCBR","F5510 - Stipends","03 - Treasury Operations","CALS - Animal Science - 51020","150 - UNR Inc&Exp","100005   GFCstShare","103 - Auxiliary Enterprises","4-H Program 0652",null,"Co-Investigator","Base B TDC","TDC ","Non Key Personnel"]
["A. D. Henderson Foundation, Inc. - 308","Research off campus remote OFCOR","F5511 - Stipends - Pre Doctoral","11 - College of Agri & Life Sci","CALS - Center for Rural Studies - 51050","300 - RES - Spon Grants & Contracts","100006 AG Experiment Station","105 - Grants & Contracts","AHEC 0604",null,"Faculty","Base C Ex Subs","Ex all subs"]
["AARP - 2742","Instruction on campus ONCI","F5990 - Fringe Benefits","12 - College of Arts & Science","CALS - College of Agriculture Dean's Office - 51000","305 - RES - Othr Grants & Contracts","100007 Extension","107 - Sales & Service Educ Actvties","Asian Studies 0395",null,"Pre Doctoral Fellow","Base E NSF Conf","NSF conf"]
["Abbott Laboratories Fund - 309","Instruction off campus OFCI","F6000 - Services & Other Expenses","13 - College of Educ & Social Serv","CALS - Community Development and Applied Economics - 51040","310 - RES - Gifts","100008 McSten","109 - Other Revenues","Biochemistry 0335",null,"Post Doctoral Fellow","Base F NSF REU","NSF REU"]
["Abt Associates Inc. - 3055","Public Service on campus PS","F6001 - Supplies","14 - College of Eng & Mathematics","CALS - Microbiology & Molecular Genetics - Agriculture - 51090","320 - RES - Endow Inc","200001   FAHCCommt","131 - Private Gifts&Grants","Bioinformatics 0445",null,"Post Doctoral Associate",null,"Unknown"]
["Academy for Educational Development - 646","Public Service off campus OFPS","F6003 - Animal Costs","15 - College of Medicine","CALS - Nutrition and Food Sciences - 51080",null,"200003   FAHCClnTrl","133 - Realized Gains(Losses)","Bionutrition 0441",null,"Other Professional",null,"No F&A allowed"]
["Ace Bioscience A/S - 606","Experiment Station on campus EXPR","F6011 - Publication Costs","16 - College of Nursing & Hlth Sci","CALS - Plant & Soil Science - 51070",null,"200005   FAHC UHC","135 - Investment Income","Canadian Studies 0308",null,"Graduate Student"]
["Administration for Children & Families - 540","Experiment Station off campus OFEX","F6020 - Computer Services","21 - School of Business Admin","CALS - Plant and Animal Biology Facility - 51060",null,"200007   FAHC AHEC","201 - Instruction","Cardiovascular Research Inst 0373",null,"Technician"]
["Administration for Community Living - 3048","Extension Service on campus EXT","F6050 - Domestic Travel","22 - Rubenstn Sch of Env & Ntrl Res","CALS - Plant Biology - 51030",null,"200008   FAHC CME","202 - Instruction - UnderGrad","CCTS Admin 0515",null,"Other"]
["Advanced Cell Diagnostics, Inc. - 798","Extension Service off campus OFXT","F6052 - Foreign Travel","31 - Continuing Education","CALS - Regulatory Lab - 51010",null,"200009   UMEA","203 - Instruction - Masters","CCTS Clinical Research Svc 0528"]
["Aerojet Electrosystems - 124","V-CHIP on campus ONVC","F6054 - Trainee Travel","32 - Extension","CAS - Anthropology - 52020",null,"200010   RCCCYF","204 - Instruction - PhD","Center for Rural Studies 0662"]
["Agency for Healthcare Research & Quality - 91","V-CHIP off campus OFVC","F6101 - Participant Expenses","41 - Aux Other","CAS - Art & Art History - 52040",null,"200011   FAHC IRB","205 - Instruction - MD","Clinical Chair 0475"]
["Agouron Institute - 9",null,"F6102 - Participant Travel","42 - Aux TransParking","CAS - Arts and Sciences Dean's Office - 52000",null,"200012   BehvThrCtr","206 - Instruction - MD/PhD","Complex Systems Spire 0570"]
["Agway Inc - 457",null,"F6120 - Consultant & Contract Services","43 - Aux Residential Life","CAS - Asian Languages and Literatures - 52350",null,"200013   BrtrxSchlr","211 - Inst-Spon","Consulting Archaeology Program 0336"]
["Air Force Office of Scientific Research - 138",null,"F6121 - Contract Services","44 - Aux Davis Center","CAS - Asian Studies - 52050",null,"200014   BrtrxSalSp","212 - CostShr-Inst-Spon","Education-Middle Level 0345"]
["Airport Sand and Fill, LLC - 2662",null,"F6124 - Training Related Exp","90 - Agency","CAS - Biology - 52060",null,"200025   StAprTchTr","213 - CostShr-SalCap-Ins","EPSCOR - Other 0996"]
["Ajinomoto Company Inc. - 65",null,"F6127 - Patient Care Expenses",null,"CAS - Canadian Studies - 52070",null,"200026   StAprMdcd","251 - CE-Inst General","EPSCOR 0328"]
["Alan Ball Industrial Design, Inc. - 951",null,"F6128 - Inpatient Care Exp",null,"CAS - Center for Research on Vermont - 52080",null,"200027   StAprOPC","252 - CE-Inst Credit","Exercise & Movement Sci Prgm 0439"]
["Albert Einstein College of Medicine - 820",null,"F6350 - Non-UVM Facilities Rental",null,"CAS - Chemistry - 52090",null,"200101   FacDiscFd","253 - CE-Inst Credit Undrgrd","Global & Regional Studies 0306"]
["Alburg Golf Links - 2953",null,"F6403 - Postdoc Health Insur",null,"CAS - Classics - 52100",null,"200102   GenClnRsFd","254 - CE-Inst Credit Grad","Graduate Studies 0113"]
["Aldrich & Elliott, PC Water Resource Eng - 3090",null,"F6404 - Relocation Costs",null,"CAS - College Computing Services - 52110",null,"200103   RschDevFd","255 - CE-Inst Credit Non Degree","GUND Institute 0331"]
["Alex C. Walker Foundation - 523",null,"F6450 - Acquisitions",null,"CAS - Consulting Archaeology Program - 52130",null,"200104   LitEdFds","256 - CE-Inst Non Credit","HELIX Program 0336"]
["Alex's Lemonade Stand Foundation - 638",null,"F6500 - Equipment",null,"CAS - Critical Race and Ethnic Studies - 52010",null,"200105   ConsortAgr","291 - Instruction - Dept Research","Historic Preservation 0310"]
["AllEarth Renewables, Inc. - 2865",null,"F6510 - Equipment Maintenance",null,"CAS - Economics - 52140",null,"300100   COMDnDisFd","301 - Inst-Dept Research","ILEHP 0616"]
["Allegheny Foundation - 228",null,"F6520 - Sub-Award <$25k",null,"CAS - English - 52150",null,"300101   CETstFdMus","311 - Rsch-Spon","Imaging 0443"]
["Allergan Inc. - 127",null,"F6521 - Sub-Award >$25k",null,"CAS - Geography - 52160",null,"300102   NFlynnBtny","312 - CostShr -Rsch-Spon","Jeffords Center 0633"]
["Alpha Therapeutics - 94",null,"F6532 - Tuition & Fees",null,"CAS - Geology - 52170",null,"300103   GmzEndFd","313 - CostShr -SalCap -Rsch","Leadership Program 0111"]
["Alpha-1 Foundation - 710",null,"F6600 - Facilities & Administration",null,"CAS - German and Russian - 52180",null,"300104   LRClscLatn","320 - Rsch-University Spnsrd","Maple Research 0353"]
["ALS Assocation - 2926",null,"F6910 - Alterations & Renovations",null,"CAS - Global & Regional Studies - 52030",null,"300105   JWilbLibFd","351 - Experiment Station","Mass Spectrometry 0444"]
["Alta Planning + Design - 88",null,"F6999 - Sponsor Excluded",null,"CAS - Historic Preservation - 52190",null,"300106   CKernFdLib","352 - Cost Shr-Exp Station","Master Gardener Program 0613"]
["Alteris Renewables, Inc. - 939",null,"F8002 - Telecom Services",null,"CAS - History - 52200",null,"300107   CWARWtrmFd","361 - Extension Services","Master of Public Admin Program 0451"]
["Alzheimer's Association - 2971",null,"F8099 - Internal - Overhead Expenses",null,"CAS - Humanities Center - 52220",null,"300108   RSGBarnsFd","362 - Cost Shr-Extension Services","Nursing 0440"]
["Amercian Association for Cancer Researc - 2965",null,"F8990 - Multi CFDA Adj",null,"CAS - John Dewey Honors Program - 52230",null,"300109   MedAlmMtFd","401 - Public Service","OLLI Osher Institute...- 0776"]
["American Academy Family Physicians Fdn - 16",null,"F9998 - Total Direct",null,"CAS - Language Resource Center - 52240",null,"300110   PrsCapDisc","411 - Public Service-Sponsored","Physiology 0442"]
["American Academy of Child & Adolescent - 503",null,null,null,"CAS - Miller Ctr for Holocaust Stdy - 52210",null,"300111   PrvCapDisc","412 - Cost Shr- Public Service","SARE 0658"]
["American Academy of Family Physicians - 2673",null,null,null,"CAS - Music & Dance - 52250",null,"300112   MJLctNeurs","413 - Cost Shr- Sal Cap Pub Service","Sustainable Ag Cntr 0659"]
["American Academy of Pediatrics - 128",null,null,null,"CAS - Philosophy - 52260",null,"300113   OshrLLrnFd","421 - Extension Services","Telemedicine 0333"]
["American Assoc for Cancer Research - 2964",null,null,null,"CAS - Physics - 52270",null,"300114   TckFlEnFd","422 - Cost Shr-Extension Services","Univ Transportation Ctr Program 0495"]
["American Association of Anatomists - 577",null,null,null,"CAS - Political Science - 52280",null,"300115   SmpTPrDisc","461 - Auxiliary Enterprises","VCHIP 0601"]
["American Cancer Society, Inc. - 680",null,null,null,"CAS - Psychological Science - 52290",null,"300116   ELBrnFdCOM","462 - Auxiliary Enterprise Admin","Vermont Genetics Program 0420"]
["American Chemical Society - 17",null,null,null,"CAS - Religion - 52300",null,"300117   LandGrant","501 - Academic Administration","VRI - Vermont Reads Institute 0607"]
["American Chemistry Council - 26",null,null,null,"CAS - Romance Languages & Linguistics - 52310",null,"300118   WCBelchrFd","502 - Deans and Provosts","VT Cancer Center 0603"]
["American College of Chest Physicians - 723",null,null,null,"CAS - Sociology - 52320",null,"300119   KlmCndFd","509 - Department Administration","VT Coop Fish & Wildlife 0416"]
["American College of Obstetricians & Gyn - 502",null,null,null,"CAS - Theatre - 52330",null,"300120   COMEndwFd1","511 - University Libraries","VT Math Initiative 0608"]
["American College of Radiology - 13",null,null,null,"CAS - Gender, Sexuality & Women's Studies - 52340",null,"300121   ConkaFdCOM","515 - Technology Transfer"]
["American College of Surgeons - 527",null,null,null,"CEMS - CEM Computer Facility - 54004",null,"300122   CrlsEstCOM","519 - Other Academic Support"]
["American Diabetes Association Inc. - 129",null,null,null,"CEMS - CEM Student Services - 54002",null,"300123   JDewyMemFd","521 - General and Administrative"]
["American Fdn for Suicide Prevention - 651",null,null,null,"CEMS - College of Eng and Math Dean's Office - 54000",null,"300124   GdrchFdCOM","531 - Sponsored Projects Admin"]
["American Federation for Aging Research - 781",null,null,null,"CEMS - Computer Science - 54050",null,"300125   TraskFdCOM","541 - Development"]
["American Floral Endowment - 310",null,null,null,"CEMS - Mathematics & Statistics - 54040",null,"300126   PiercFdCOM","542 - Public Relations"]
["American Heart (New England Affiliate) - 131",null,null,null,"CEMS - School of Engineering - 54005",null,"300127   ShawMemCOM","601 - Operations & Maintenance"]
["American Heart Association - 130",null,null,null,"CESS - Center on Disability and Community Inclusion - 53030",null,"300128   CptrFdVRCC","602 - Operations & Maintenance Admin"]
["American Heart Association - Founders - 784",null,null,null,"CESS - College of Ed and Social Services Dean's Office - 53000",null,"300129   CoeFdOrgan","701 - Student Admin & Services"]
["American Heart Association Northeast Aff - 311",null,null,null,"CESS - College of Ed and Social Services Student Services - 53040",null,"300130   FlmgMuseFd","901 - Fellowships/Scholar/Awrds"]
["American Jersey Cattle Association - 312",null,null,null,"CESS - Education - 53010",null,"300131   DeanLectFd","905 - Benefit Expenses"]
["American Lung Association - 101",null,null,null,"CESS - Leadership and Developmental Sciences - 53020",null,"300132   ZeltzrmnFd","906 - Excluded Benefit Expenses"]
["American Malting Barley Production - 3079",null,null,null,"CESS - Social Work - 53050",null,"300133   SdrAlFcChr","991 - Capital Expenses"]
["American Museum of Natural History - 277",null,null,null,"CNHS - College of Nursing and Health Sciences Dean - 56000",null,"300134   CALSEndwFd","994 - Transfer"]
["American Neurogastroenterology&Motility - 3117",null,null,null,"CNHS - College of Nursing Health Sciences Student Services - 56002",null,"300135   SDnDisCALS","995 - Suspense"]
["American Ornithologists' Union - 313",null,null,null,"CNHS - Communication Science and Disorders - 52120",null,"300136   LoomisTrFd","998 - Recharge Center"]
["American Petroleum Institute - 314",null,null,null,"CNHS - Medical Laboratory and Radiation Sciences - 56030",null,"300137   WhlrBtnyFd","999 - Agency Expenses"]
["American Psychological Foundation - 315",null,null,null,"CNHS - Nursing - 56010",null,"300138   PrgHerbmFd"]
["American Scty for Clinical Investigation - 634",null,null,null,"CNHS - Rehabilitation and Movement Sciences - 56020",null,"300139   BWilmrthFd"]
["American Society for Nutrition - 685",null,null,null,"COM - Anatomy & Neurobiology - 55100",null,"300140   SymrHortFd"]
["American Society for Reproductive - 3051",null,null,null,"COM - Anesthesiology - 55500",null,"300141   ASEndowFd"]
["American Society of Hematology - 22",null,null,null,"COM - Biochemistry - 55110",null,"300142   HwknsFdAS"]
["American Thoracic Society - 749",null,null,null,"COM - College of Medicine Admissions - 55008",null,"300143   ReyMmFdArt"]
["AmericaView - 2615",null,null,null,"COM - College of Medicine Dean's Office - 55000",null,"300144   RbtFdClasc"]
["Amgen - 132",null,null,null,"COM - College of Medicine Development & Alumni Relations - 55014",null,"300145   WhlFdClasc"]
["Amyotrophic Lateral Sclerosis Assoc - 303",null,null,null,"COM - College of Medicine Educational Tools - 55028",null,"300146   CrseFdEngl"]
["Analog Devices Inc - 316",null,null,null,"COM - College of Medicine Executive Office - 55001",null,"300147   AndPoliSci"]
["Andrew W. Mellon Foundation - 399",null,null,null,"COM - College of Medicine Finance & Human Resources - 55004",null,"300148   CreamEndw"]
["Animal Behavior Society - 318",null,null,null,"COM - College of Medicine General - 55034",null,"300149   ChylsGrdFd"]
["AnthroTronix Inc. - 74",null,null,null,"COM - College of Medicine Information Systems - 55006",null,"300150   RTFacFlwFd"]
["AO Research Foundation - 731",null,null,null,"COM - College of Medicine Medical AV - 55032",null,"300151   WhlZoolgFd"]
["AO Research Institute - 292",null,null,null,"COM - College of Medicine Office of Medical Education - 55024",null,"300152   CEngMthFd"]
["Apollo SRI LLC UVM - 41",null,null,null,"COM - College of Medicine Office of Primary Care - 55022",null,"300153   CtrDgtInFd"]
["Appalachian Regional Commission - 571",null,null,null,"COM - College of Medicine Operations - 55002",null,"300154   COMEndwFd2"]
["Applied Imaging Corporation - 161",null,null,null,"COM - College of Medicine Patient Oriented Research - 55020",null,"300155   GdnrFdCOM"]
["Arbor Research Collaborative for Health - 948",null,null,null,"COM - College of Medicine Public Relations - 55012",null,"300156   JenneFdCOM"]
["Archemix Corporation - 902",null,null,null,"COM - College of Medicine Student Affairs - 55010",null,"300157   ReynldsCOM"]
["Arctic Institute of North America - 639",null,null,null,"COM - Continuing Medical Education - 55090",null,"300158   BrMemFdCOM"]
["Arizona State University - 319",null,null,null,"COM - Family Medicine - 55510",null,"300159   "]
["Art Alliance for Contemporary Glass - 599",null,null,null,"COM - General Clinical Research Center (GCRC) - 55018",null,"300160   ShpFdOpthm"]
["Arthritis Foundation - 320",null,null,null,"COM - Medical Biostatistics - 55080",null,"300161   AlumnLibFd"]
["ASCO Conference Consortium - 679",null,null,null,"COM - Medical Photography - 55050",null,"300162   BlchrLibFd"]
["Asian Pacific Environmental Exchange - 321",null,null,null,"COM - Medicine - 55520",null,"300163   HwdLibFd"]
["Assoc of Public Health Laboratories - 51",null,null,null,"COM - Medicine - Cardiology - 55524",null,"300164   LibraryFd"]
["Assoc of State&Fed Territorial Health - 3101",null,null,null,"COM - Medicine - Clinical Pharmacology - 55526",null,"300165   LoomsLibFd"]
["Associated Medical Services Inc. - 37",null,null,null,"COM - Medicine - Department Admin - 55522",null,"300166   StrgLibFd"]
["Association of American Medical Colleges - 544",null,null,null,"COM - Medicine - Dermatology - 55528",null,"300167   ThmpLibFd"]
["Association of University Centers on Dis - 856",null,null,null,"COM - Medicine - Endocrinology - 55530",null,"300168   WhlrLibFd"]
["Asthma and Allergy Foundation of America - 967",null,null,null,"COM - Medicine - Gastroenterology - 55534",null,"300169   AyerLibFd"]
["Astra-Zeneca - 43",null,null,null,"COM - Medicine - General - 55554",null,"300170   BrnrdLibFd"]
["A-T Children's Project - 202",null,null,null,"COM - Medicine - General Internal Medicine - 55536",null,"300171   PClscLibFd"]
["Atlantic Center for the Environment QLF - 653",null,null,null,"COM - Medicine - Gerontology Geriatrics - 55532",null,"300172   PMemLibFd"]
["Auburn University - 2633",null,null,null,"COM - Medicine - Hematology Oncology - 55538",null,"300173   StLibFdEgr"]
["Audubon Society of New Hampshire - 322",null,null,null,"COM - Medicine - Immunobiology - 55542",null,"300174   TnLibFdAS"]
["Audubon Vermont - 193",null,null,null,"COM - Medicine - Infectious Diseases - 55540",null,"300175   SMemFdMLib"]
["Aventis Pharmaceuticals - 276",null,null,null,"COM - Medicine - Nephrology - 55544",null,"300176   IAChplEndw"]
["Axio Research Corp. - 163",null,null,null,"COM - Medicine - Pulmonary - 55546",null,"300177   BlgnsLibEn"]
["Baltimore VA Medical Center - 841",null,null,null,"COM - Medicine - Rheumatology - 55550",null,"300178   WlctMuseFd"]
["Bannon Engineering - 760",null,null,null,"COM - Medicine - Vascular Biology - 55552",null,"300179   LwrFdDbtng"]
["Barrett Foundation - 323",null,null,null,"COM - Microbiology & Molecular Genetics - Medicine - 55120",null,"300180   PFdPatDorm"]
["Barton VT(Village of) - 2490",null,null,null,"COM - Molecular Physiology & Biophysics - 55140",null,"300181   LaneMemFd"]
["Bassett Hospital (Mary Imogene) - 882",null,null,null,"COM - Neurological Sciences - 55800",null,"300182   CrgnFdCALS"]
["Baxter Healthcare Corporation - 46",null,null,null,"COM - Neurology - 55600",null,"300183   BMemFdExt"]
["Bayer Biological Products - 137",null,null,null,"COM - Obstetrics & Gynecology - Reprod Endocrn&Infertility - 55618",null,"300184   AKentPlaq"]
["Bayer HealthCare AG / Bayer Schering - 995",null,null,null,"COM - Obstetrics and Gynecology - General - 55612",null,"300185   RileyFdCOM"]
["Baylor College of Medicine - 681",null,null,null,"COM - Obstetrics and Gynecology - Gynecologics Oncology - 55614",null,"300186   GeolVstLec"]
["BDP Realty, LLC - 635",null,null,null,"COM - Obstetrics and Gynecology - Maternal Fetal - 55616",null,"300187   HTinkFdAna"]
["Beaver Wood Energy Pownal LLC - 2737",null,null,null,"COM - Obstetrics and Gynecology&Reprod - 55610",null,"300188   STrstLabAn"]
["Beckman Research Institute of the City - 836",null,null,null,"COM - Office of Clinical Trials Research - 55016",null,"300189   WhiteFdCOM"]
["Behavior Therapy and Psychotherapy Cente - 889",null,null,null,"COM - Office of Health Promotion Research - 55070",null,"300190   LoftsEsCOM"]
["Ben & Jerry's Foundation - 2879",null,null,null,"COM - Orthopaedics & Rehabilitation - 55640",null,"300191   MshFdEngls"]
["Bernard Osher Foundation - 423",null,null,null,"COM - Pathology & Laboratory Medicine - 55650",null,"300192   GAknLecSrs"]
["Bernstein Litowitz Berger & Grossman LLP - 458",null,null,null,"COM - Pathology & Laboratory Medicine-Anatomic - 55652",null,"300193   PsnliFdCOM"]
["Beth Israel Deaconess Medical Center - 926",null,null,null,"COM - Pathology & Laboratory Medicine-Clinical - 55654",null,"300194   ClmExprSta"]
["Binney and Smith Inc. - 12",null,null,null,"COM - Pathology & Laboratory Medicine-General - 55656",null,"300195   JDewyMemLe"]
["BioMosaics Inc. - 3022",null,null,null,"COM - Pediatrics - 55700",null,"300196   JMorganFd"]
["Biosearch Technologies Inc. - 109",null,null,null,"COM - Pediatrics - Allergy Immunology - 55704",null,"300197   RaneyFdCOM"]
["Biosense Webster Inc. - 68",null,null,null,"COM - Pediatrics - Cardiology - 55706",null,"300198   PrillEsCOM"]
["Bio-Tek Instruments - 196",null,null,null,"COM - Pediatrics - Endocrinology - 55708",null,"300199   ScottFdCOM"]
["BioXell S.p.A. - 460",null,null,null,"COM - Pediatrics - Gastroenterology - 55710",null,"300200   PCncrRscFd"]
["Bi-State Primary Care Association - 602",null,null,null,"COM - Pediatrics - General - 55702",null,"300201   BtlChrPthl"]
["BLAZE Design, Inc. - 824",null,null,null,"COM - Pediatrics - Genetics - 55712",null,"300202   WMemCncRsh"]
["Blue Cross Blue Shield of VT - 594",null,null,null,"COM - Pediatrics - Hematology Oncology - 55714",null,"300203   BHSpcAcqFD"]
["Blue Moon Fund - 566",null,null,null,"COM - Pediatrics - Infectious Disease - 55716",null,"300204   ARheumatFd"]
["Blue Spruce Farm Inc. - 324",null,null,null,"COM - Pediatrics - Neonatology - 55718",null,"300205   GFldHsFd"]
["Boehringer Ingleheim Canada Ltd. - 2732",null,null,null,"COM - Pediatrics - Nephrology - 55720",null,"300206   EAFdChrCOM"]
["Borderline Personality Disorder Res Fdn - 500",null,null,null,"COM - Pediatrics - Pulmonary - 55722",null,"300207   RiceFdAthl"]
["Boston Children's Hospital - 325",null,null,null,"COM - Pharmacology - 55130",null,"300208   PcEveMemFd"]
["Boston University - 107",null,null,null,"COM - Psychiatry - 55750",null,"300209   SmlFdThtre"]
["Bourdeaus and Bushey, Inc. - 644",null,null,null,"COM - Radiation-Oncology - 55762",null,"300210   SMlrOMAthl"]
["Bowse (James T.) Community Health Trust - 735",null,null,null,"COM - Radiology - 55760",null,"300211   OMphyFdCOM"]
["Boyle (T J) and Associates - 707",null,null,null,"COM - Surgery - 55770",null,"300212   AGoffFdCOM"]
["Breast Cancer Research Foundation - 100",null,null,null,"COM - Surgery - Emergency Medicine - 55774",null,"300213   SchDanaLib"]
["Brigham and Women's Hospital - 969",null,null,null,"COM - Surgery - General - 55772",null,"300214   PNtrResMgt"]
["Bristol Laboratories - 87",null,null,null,"COM - Surgery - Neurosurgery - 55776",null,"300215   RmdMemLecR"]
["Bristol Myers Squibb - 531",null,null,null,"COM - Surgery - Oncology - 55794",null,"300216   MMedLecSer"]
["Broadreach Planning & Design - 873",null,null,null,"COM - Surgery - Ophthalmology - 55778",null,"300217   BrnLecSer"]
["Brookdale Foundation Group - 326",null,null,null,"COM - Surgery - Otolaryngology - 55780",null,"300218   MBellFdCOM"]
["Brown University - 327",null,null,null,"COM - Surgery - Pediatric - 55782",null,"300219   KPrntFdCOM"]
["Building Bright Futures - 3037",null,null,null,"COM - Surgery - Plastic - 55784",null,"300220   CdnStdEndw"]
["Bullock Real Estate - 149",null,null,null,"COM - Surgery - Thoracic Cardiovascular - 55786",null,"300221   MBldFdPoet"]
["Bullrock Corporation - 114",null,null,null,"COM - Surgery - Transplant - 55788",null,"300222   JBytnLibFd"]
["Burchfield Management Company, LLC - 2893",null,null,null,"COM - Surgery - Trauma - 55796",null,"300223   RJMkPedFd"]
["Bureau of Justice Assistance/Department - 713",null,null,null,"COM - Surgery - Urology - 55790",null,"300224   MJcbLibAcq"]
["Bureau of the Census - 931",null,null,null,"COM - Surgery - Vascular - 55792",null,"300225   EKlknBsSem"]
["Burlington Co-Housing Development LLC - 99",null,null,null,"COM - Vermont Cancer Center - 55060",null,"300226   JEAlxndrFd"]
["Burlington Electric Department - 2747",null,null,null,"COM - VT Ctr for Clinical & Translational Science - 30670",null,"300227   JMrvnLecSr"]
["Burlington Gem and Mineral Club - 142",null,null,null,"CONT ED - Continuing Education - Lane Series - 50108",null,"300228   BckmFdEngl"]
["Burlington School District - 936",null,null,null,"CONT ED - Continuing Education - Operations - 50102",null,"300229   FHrsFdAthl"]
["Burroughs Wellcome Fund - 143",null,null,null,"CONT ED - Continuing Education - Program and Enrollment Mngt - 50106",null,"300230   WhtlyPrEnd"]
["Butternut Ventures LLC UVM - 505",null,null,null,"CONT ED - Continuing Education - Technology - 50104",null,"300231   WArtEndow"]
["C&S Wholesale Grocers - 1829",null,null,null,"CONT ED - Continuing Education Administration - 50100",null,"300232   PrvDisEndw"]
["Caledonia North Supervisory Union - 742",null,null,null,"DISTANCE ED - Distance Education Office - 58400",null,"300233   BMdRschCOM"]
["California FarmLink - 2871",null,null,null,"EXT - Extension - Director of Extension - 50000",null,"300234   CoorEndHmt"]
["California Hospital Medical Center - 782",null,null,null,"EXT - Extension - Expanded Food and Nutrition... - 50052",null,"300235   PhyscCollq"]
["California Pacific Medical Center - 821",null,null,null,"EXT - Extension - Operations and Staff Support - 50042",null,"300236   KHolcstFd"]
["Cambridge Development Corp. - 3107",null,null,null,"EXT - Extension - Program and Faculty Support - 50040",null,"300237   EnvPrEnrch"]
["Cambridge Environmental, Inc. - 645",null,null,null,"EXT - Extension - Rural and Agricultural Voc Rehab - 50054",null,"300238   WFldnEndow"]
["Camille and Henry Dreyfus Foundation - 93",null,null,null,"EXT - Extension - SARE - 50056",null,"300239   AnlFdEndow"]
["Camp Dudley, YMCA - 945",null,null,null,"EXT - Extension - State Office Staff - 50020",null,"300240   MRsnLecSer"]
["Campbell Foundation - 2593",null,null,null,"EXT - Extension - Statewide 4-H - 50050",null,"300241   JLcyNeoMed"]
["Campus Kitchens Project, The - 811",null,null,null,"EXT - Extension Sustainable Agriculture Center - 50026",null,"300242   BHwlyTrFd"]
["Canaday Family Charitable Trust - 572",null,null,null,"FLEMING - Fleming Museum - 31100",null,"300243   MWayTrust"]
["Canadian Embassy - 288",null,null,null,"GRAD - Graduate College - 58200",null,"300244   WmCtrEndw"]
["Canadian Memorial Chiropractic College - 752",null,null,null,"HONORS - Honors College - 58100",null,"300245   RDMemEndw"]
["Cancer & Leukemia Group B Foundation - 53",null,null,null,"HR AND DIVERSITY - Affirmative Action / Equal Opportunity - 10060",null,"300246   MWBTrPsych"]
["Cancer Research & Prevention Foundation - 328",null,null,null,"HR AND DIVERSITY - ALANA Student Center - 10090",null,"300247   WFmEndwVol"]
["Cancer Research Center of Hawaii - 588",null,null,null,"HR AND DIVERSITY - Chief Diversity Office - 10040",null,"300248   WFmEndwBkb"]
["Carnegie Mellon University - 952",null,null,null,"HR AND DIVERSITY - Cultural Pluralism - 30100",null,"300249   RAEnglEndw"]
["Cary Institute - 2785",null,null,null,"HR AND DIVERSITY - Diversity & Equity - 10070",null,"300250   RASrgyEndw"]
["Case Western Reserve University - 165",null,null,null,"HR AND DIVERSITY - Employee Assistance Program - 11310",null,"300251   SocrEndCnt"]
["Casella Construction, Inc. - 2883",null,null,null,"HR AND DIVERSITY - HRS Learning Services - 11320",null,"300252   GlghBkFd"]
["Catamount/Howard LLC - 267",null,null,null,"HR AND DIVERSITY - Human Resources - 11300",null,"300253   WFgnFdLib"]
["Catamount/Youkel, LLC - 3058",null,null,null,"HR AND DIVERSITY - LGBTQA Services - 10080",null,"300254   LWGenFdRsc"]
["Catholic Healthcare West - 604",null,null,null,"HR AND DIVERSITY - MultiCultural Affairs - 30111",null,"300255   GndChLbArt"]
["Cave Conservancy Foundation - 152",null,null,null,"HR AND DIVERSITY - Women's Center - 10050",null,"300256   DgtAthlSch"]
["Cedars Sinai Medical Center - 329",null,null,null,"LIBRARIES - Academic Computing - 58316",null,"300257   JMLectSer"]
["Celera Diagnostics LLC - 32",null,null,null,"LIBRARIES - Bailey Howe - Access & Tech Services - 58320",null,"300259   MChrmOBGyn"]
["Celgene Corporation - 104",null,null,null,"LIBRARIES - Bailey Howe - Collection Management Services - 58326",null,"300260   MSHockeyFd"]
["Centeon - 4",null,null,null,"LIBRARIES - Bailey Howe - Info & Instruction - 58322",null,"300261   BFdDDisCOM"]
["Center for Democracy & Citizenship - 506",null,null,null,"LIBRARIES - Bailey Howe - Research Collections - 58324",null,"300262   LthSmAsnSd"]
["Center for Health and Learning - 855",null,null,null,"LIBRARIES - Bailey Howe Library - 58328",null,"300263   RbnEcoSciL"]
["Center for Information Technology - 535",null,null,null,"LIBRARIES - Bailey-Howe-Resource Desc Svcs - 58327",null,"300264   AndMdRshc"]
["Center for Scientific Review - 536",null,null,null,"LIBRARIES - Business Process Reengineering Team - 11412",null,"300265   RHoppMemFd"]
["Centerplan Development Company LLC - 2757",null,null,null,"LIBRARIES - Center for Teaching and Learning - 58312",null,"300266   McKLChrPed"]
["Centers for Disease Control & Prevention - 330",null,null,null,"LIBRARIES - Computer Depot - 11610",null,"300267   NLecFdPed"]
["Centers for Medicare and Medicaid - 705",null,null,null,"LIBRARIES - Dana Medical Library - 58330",null,"300268   PMplRshCtr"]
["Central Vermont Public Service - 954",null,null,null,"LIBRARIES - Database Administration - 11650",null,"300269   WCerfExEnd"]
["Central Vermont Regional Planning - 2905",null,null,null,"LIBRARIES - Enterprise Application Service - 11660",null,"300270   CBTrLuseCt"]
["Central Vermont Regional Planning Comm. - 2876",null,null,null,"LIBRARIES - Enterprise Technology Services - 11600",null,"300271   BoveEndPed"]
["Central VT Community Action Council Inc - 305",null,null,null,"LIBRARIES - ETS Client Services - 11630",null,"300272   MEndBioMRs"]
["CERES Foundation - 2937",null,null,null,"LIBRARIES - Information Security Office - 11670",null,"300273   MthStEndFd"]
["Champlain College - 818",null,null,null,"LIBRARIES - Learning & Information Technology - 58314",null,"300274   SmpLdrDDis"]
["Champlain Consulting Engineers - 617",null,null,null,"LIBRARIES - Libraries - Dean's Office - 58300",null,"300276   CtHolctStd"]
["Champlain Housing Trust - 718",null,null,null,"LIBRARIES - Systems Architecture and Administration - 11620",null,"300277   PtrChrNeph"]
["Champlain Water District - S Burl - 699",null,null,null,"LIBRARIES - Telecommand Network Services - 11640",null,"300278   PtrChSNR"]
["CHDI Foundation, Inc - 2969",null,null,null,"LIBRARIES - Univ Web Development - 58310",null,"300279   FryFdMeEdu"]
["Chelsea (Town Of) - 848",null,null,null,"MILITARY - Military Studies - 31200",null,"300280   AAEndwBks"]
["Child and Adolescent Psychology Training - 154",null,null,null,"PHYSICAL PLANT - Physical Plant - 11510",null,"300281   CFdRscPhys"]
["Childrens Hosp & Regnl Med Ctr (Seattle) - 287",null,null,null,"PRESIDENT - President's Office - 10000",null,"300282   MdgFdRGeol"]
["Children's Hospital of Philadelphia - 2702",null,null,null,"PRESIDENT - Staff Council - 11002",null,"300283   BEndMrgHFm"]
["Children's Leukemia Research Association - 97",null,null,null,"PROVOST - Center on Aging - 30018",null,"300284   BTrmFdOSSS"]
["Children's Miracle Network - 145",null,null,null,"PROVOST - CUPS - 30017",null,"300285   PMBrAneyFd"]
["Chittenden Community Television - 461",null,null,null,"PROVOST - Faculty Senate - 30050",null,"300286   UVMQusiEnd"]
["Chittenden County Regional Planning - 733",null,null,null,"PROVOST - Integrated Biology - 30019",null,"300287   OwtrMERsch"]
["Chittenden Cty Maple Sugar Makers Assoc - 598",null,null,null,"PROVOST - Living and Learning Center - 30230",null,"300288   ADFdSpecCl"]
["Chittenden Solid Waste District - 946",null,null,null,"PROVOST - Residential Learning Community - 30231",null,"300289   LCMlrEndow"]
["Chromavision Medical Systems Inc. - 67",null,null,null,"PROVOST - Senior VP and Provost - 30000",null,"300290   MacmlnFd"]
["CIAT-International Center for Tropical A - 2793",null,null,null,"PROVOST - Writing in the Disciplines - 30016",null,"300291   VslArtEndw"]
["Cincinnati Children's Hospital Medical C - 911",null,null,null,"RSENR - Environmental Program - 57060",null,"300292   CGVLecEgr"]
["CIRCA, Inc. - 2771",null,null,null,"RSENR - Gund Institute - 57080",null,"300293   LMcCFdCOM"]
["City of Burlington - 155",null,null,null,"RSENR - Rubenstein School Dean's Office - 57000",null,"300294   McPgLecSur"]
["City of Montpelier - 959",null,null,null,"SUSTAINABILITY - Office of Sustainability - 11110",null,"300295   KSusForsFd"]
["City of New York - 632",null,null,null,"VP ENROLLMENT - Admissions - 30200",null,"300296   Cpra63Fd"]
["City of South Burlington - 620",null,null,null,"VP ENROLLMENT - International Educational Services - 30240",null,"300297   ChrEnFdEng"]
["Civil Engineering Associates Inc. - 118",null,null,null,"VP ENROLLMENT - Registrar - 30220",null,"300298   CBaileyFd"]
["Clark University - 885",null,null,null,"VP ENROLLMENT - Student Financial Svcs - 11250",null,"300299   UrlgyRshFd"]
["Clemson University - 235",null,null,null,"VP ENROLLMENT - VP Legal Affairs & General Counsel - 10300",null,"300300   AltschEndw"]
["Cleveland Foundation - 499",null,null,null,"VP ENROLLMENT - VP of Enrollment Management - 30210",null,"300301   GbdLecPsyc"]
["Clinical Research Management, Inc. - 611",null,null,null,"VP FINANCE - Admin Business Service Ctr - 20001",null,"300302   CLSkiEndow"]
["Coler & Colantonio, Inc. - 2907",null,null,null,"VP FINANCE - Controllers Office - 11200",null,"300303   CardioDvFd"]
["Colorado School of Mines - 964",null,null,null,"VP FINANCE - Cost Accounting Svcs - 11270",null,"300305   ChrEOLPtvC"]
["Colorado State University - 265",null,null,null,"VP FINANCE - Fin Rptng & Acct Svcs - 11220",null,"300306   AKEndHoloc"]
["Columbia University - 177",null,null,null,"VP FINANCE - Financial Analysis and Budgeting - 11400",null,"300307   WMdrEndow"]
["Common Ground Center - 847",null,null,null,"VP FINANCE - Procurement Services - 11550",null,"300308   WnsckEndow"]
["Commonwealth Fund - 240",null,null,null,"VP FINANCE - Treasury and Tax Svcs - 11240",null,"300309   GIEEEndFd"]
["Connecticut Agricultural Experiment Stat - 2865",null,null,null,"VP FINANCE - VP Finance - 11000",null,"300310   PhrmCrdREn"]
["Conservation and Research Foundation - 3091",null,null,null,"VP RESEARCH - Animal Care Management - 30640",null,"300311   ZadekEndow"]
["Conservation Fund - 507",null,null,null,"VP RESEARCH - EPSCoR - 30010",null,"300312   MglrEndow"]
["Conservation International - 641",null,null,null,"VP RESEARCH - IMF / TSP - 30650",null,"300313   EmLecPedNe"]
["Conservation, Food and Health Foundation - 593",null,null,null,"VP RESEARCH - Sponsored Project Administration - 30612",null,"300314   UVMHckyEnd"]
["Consultative Group on International - 686",null,null,null,"VP RESEARCH - Technology Commercialization - 30630",null,"300315   LctrAnesth"]
["Coop Inst Limnology Ecosystems Research - 331",null,null,null,"VP RESEARCH - Transportation Research Center - 30014",null,"300316   KFmFdFinan"]
["Cooperative Development Institute - 675",null,null,null,"VP RESEARCH - Vermont Genetics - 30012",null,"300317   MtbhlrRsFd"]
["Cooperative Ecosystem Studies Unit Net - 209",null,null,null,"VP RESEARCH - VP Research Admin Office - 30600",null,"300318   GMallaryFd"]
["Cornelius King Charitable Trust - 728",null,null,null,"VP RESEARCH - VT Advanced Computing Ctr - 30660",null,"300319   HfmnBsInvL"]
["Cornell University - 347",null,null,null,"VP STUDENT AFFAIRS - Academic Success Programs - 30420",null,"300320   CRschVTEnd"]
["Cornerstone Renewables LLC - 3052",null,null,null,"VP STUDENT AFFAIRS - Career Center - 30430",null,"300321   BrkPresLec"]
["Corporation for Ntl & Community Service - 695",null,null,null,"VP STUDENT AFFAIRS - Center for Health and Well Being - 30450",null,"300322   FrndsHocky"]
["Correct Care Solutions - 2857",null,null,null,"VP STUDENT AFFAIRS - Center for Student Ethics and  Standards - 30440",null,"300323   TKPresDsFd"]
["Coulter (Wallace H.) Foundation - 797",null,null,null,"VP STUDENT AFFAIRS - Dean of Students - 30400",null,"300324   JSMemFdTen"]
["Council for Agric Science & Tech - 339",null,null,null,"VP STUDENT AFFAIRS - Off Campus Agencies - 30435",null,"300325   JGMemFdSpE"]
["Council for Aid to Education - 766",null,null,null,"VP STUDENT AFFAIRS - Residential Life - 30452",null,"300326   ESywrFdEgr"]
["Council on Social Work Education - 340",null,null,null,"VP STUDENT AFFAIRS - Residential Life Facilities Ops - 30453",null,"300328   MHlcFdSNR"]
["Craighead Foundation - 2983",null,null,null,"VP STUDENT AFFAIRS - Residential Life Res Education - 30451",null,"300329   JBRareBkFd"]
["Crohn's & Colitis Foundation of America - 75",null,null,null,"VP STUDENT AFFAIRS - Student and Community Relations - 30410",null,"300330   PgeCGASp"]
["CROPP Cooperative - 839",null,null,null,"VP STUDENT AFFAIRS - Student Government Association - 30456",null,"300331   HJAntonMFd"]
["Cross Consulting Engineers, P.C. - 2766",null,null,null,"VP STUDENT AFFAIRS - Student Life - 30454",null,"300332   VTiaEndwFd"]
["Cross Vermont Trail Association - 690",null,null,null,"VP UNIV RELATIONS - Administrative & Facilities Services - 11500",null,"300333   LGouldLecS"]
["Cryo Cath Technologies Inc. - 39",null,null,null,"VP UNIV RELATIONS - AFS Auxiliary Srcs - 11560",null,"300334   FdCltrDiv"]
["CSL Berhring - 2986",null,null,null,"VP UNIV RELATIONS - AFS Information Systems - 11501",null,"300335   EHSemnrFd"]
["CV Therapeutics Inc - 231",null,null,null,"VP UNIV RELATIONS - Athletics - 30500",null,"300336   HKMemFdHeb"]
["CVS Charitable Trust Inc. - 462",null,null,null,"VP UNIV RELATIONS - Campus Planning - 11104",null,"300337   ASDnDisFd"]
["Cystic Fibrosis Fdn Therapeutics, Inc - 607",null,null,null,"VP UNIV RELATIONS - Capital Planning & Mgmt - 11100",null,"300338   CEMDnDis"]
["Cystic Fibrosis Foundation - 69",null,null,null,"VP UNIV RELATIONS - CatCard Service Center - 11565",null,"300339   PlchCGASp"]
["Cytokinetics Inc. - 508",null,null,null,"VP UNIV RELATIONS - Conference & Event Services - 11570",null,"300340   HisPrvEndw"]
["D & F SPATES - 556",null,null,null,"VP UNIV RELATIONS - Custodial Services - 11508",null,"300341   COMEndwFd3"]
["Dairy Australia - 800",null,null,null,"VP UNIV RELATIONS - Davis Center - 11590",null,"300342   BsAdmLecSr"]
["Dairy Center Enterprises - 812",null,null,null,"VP UNIV RELATIONS - Environmental Safety - 11531",null,"300343   CldyCGASp"]
["Dairy Management, Inc. - 751",null,null,null,"VP UNIV RELATIONS - Facilities Design and Construction - 11102",null,"300344   BrwnCGA2Sp"]
["Dairy Research Institute - 955",null,null,null,"VP UNIV RELATIONS - Mail Services - 11582",null,"300345   DrknCGASp"]
["Damon Runyon Cancer Research Foundation - 528",null,null,null,"VP UNIV RELATIONS - Parking Services - 11542",null,"300346   HoweCGA2Sp"]
["Dana Farber Cancer Institute - 810",null,null,null,"VP UNIV RELATIONS - Physical Plant Dept - 11700",null,"300347   MarxCRUTSp"]
["Dartmouth College - 243",null,null,null,"VP UNIV RELATIONS - Police Services - 11575",null,"300348   LgnbCRUTSp"]
["David Bohnett Foundation - 582",null,null,null,"VP UNIV RELATIONS - Print & Mail Center - 11580",null,"300349   HnzCRUT1Rs"]
["David Evans and Associates Inc. - 348",null,null,null,"VP UNIV RELATIONS - Print Services - 11581",null,"300350   FbrCRAT1Ch"]
["David G. White & Associates Inc. - 40",null,null,null,"VP UNIV RELATIONS - Radiation Safety - 30620",null,"300351   FbrCRAT2Ch"]
["Davis Conservation Foundation - 76",null,null,null,"VP UNIV RELATIONS - Risk Management and Safety - 11530",null,"300352   DndCRUTSp"]
["Davis Educational Foundation - 341",null,null,null,"VP UNIV RELATIONS - Transportation & Parking Administration - 11540",null,"300353   HnzCRUT2Rs"]
["Defense Agvanced Research Projects Agenc - 2960",null,null,null,"VP UNIV RELATIONS - Transportation Services - 11541",null,"300354   McCPIFRPM"]
["Defense Threat Reduction Agency - 738",null,null,null,"VP UNIV RELATIONS - University Communications - 30550",null,"300355   LbwLctrEnw"]
["Delmarva Foundation for Medical Care - 117",null,null,null,"VP UNIV RELATIONS - University Relations - 10400",null,"300356   PseCGASp"]
["Denver Zoological Foundation, Inc. - 2845",null,null,null,"VP UNIV RELATIONS - Univ Relation & Admin - 30300",null,"300357   HoweCGA1Sp"]
["Department for International Development - 2744",null,null,null,"VP UNIV RELATIONS - UVM Bookstore - 11585",null,"300358   DlgCGASp"]
["Department of Defense - 272",null,null,null,null,null,"300359   DrBrCGASp"]
["Department of Energy - 187",null,null,null,null,null,"300360   SouleCGASp"]
["Department of Health and Human Services - 2302",null,null,null,null,null,"300361   KrgrCGASp"]
["Department of Housing & Urban Devlpmnt - 233",null,null,null,null,null,"300362   PrtgCGASp"]
["Department of the Interior - 122",null,null,null,null,null,"300363   ChlCGAChr"]
["Department of the Navy - 278",null,null,null,null,null,"300364   LwrCGAFd"]
["Department of Veterans Affairs - 2674",null,null,null,null,null,"300365   MasneauCGA"]
["DePuy Spine, Inc - 871",null,null,null,null,null,"300366   GlvCGASp"]
["DEW Route 2A Investments, LLC c/o DEW Co - 892",null,null,null,null,null,"300367   PseCGA2Sp"]
["Diabetes Action Research and Education - 846",null,null,null,null,null,"300368   LazCGALcSr"]
["diaDexus - 2961",null,null,null,null,null,"300369   DntCGASp"]
["Diamond Shamrock Corporation - 456",null,null,null,null,null,"300370   McCmkCGARs"]
["DO NOT USE - 912",null,null,null,null,null,"300371   SawyrCGASp"]
["Doris Duke Charitable Foundation - 350",null,null,null,null,null,"300372   CapzCGASp"]
["Douglas Hospital of Montreal - 464",null,null,null,null,null,"300373   KlkExhbSp"]
["Drexel University - 349",null,null,null,null,null,"300374   YaffeCGASp"]
["Dubois and King - 937",null,null,null,null,null,"300375   BrwnCGASp"]
["Dufresne & Associates PC - 175",null,null,null,null,null,"300376   NrbgCGASp"]
["Dufresne-Henry Inc - 498",null,null,null,null,null,"300377   ClryCGASp"]
["Duke University - 159",null,null,null,null,null,"300378   PlchCGA2Sp"]
["Dupont (E I Denemours) and Company - 158",null,null,null,null,null,"300379   BygnCGASp"]
["Dupont Photomasks Inc. - 269",null,null,null,null,null,"300380   DvsLctSrsS"]
["Dynamics Research Corporation - 351",null,null,null,null,null,"300381   JneTrstEnd"]
["E G & G Mound Applied Technologies - 352",null,null,null,null,null,"300382   SlTmpFd"]
["E.A.S.Y LLC - 2956",null,null,null,null,null,"300383   SchfrEndw"]
["E.P. Limited - 614",null,null,null,null,null,"300384   LvFmFd"]
["Earth Economics - 804",null,null,null,null,null,"300385   PngreAcsFd"]
["Earth Inc. - 790",null,null,null,null,null,"300386   UVM4HFd"]
["Earthwatch Institute - United States - 890",null,null,null,null,null,"300387   SpctrFd"]
["Eastern Association for the Surgery - 579",null,null,null,null,null,"300388   RwsnFd"]
["Eastern Cooperative Oncology Group - 184",null,null,null,null,null,"300389   LvttFd"]
["Eastman Kodak Company - 195",null,null,null,null,null,"300390   VrtliFd"]
["Eating Well Inc. - 176",null,null,null,null,null,"300391   YaffePedFd"]
["EBI Consulting - 719",null,null,null,null,null,"300392   PlchCGA3Sp"]
["ECHO Lake Aquarium and Science Center - 2724",null,null,null,null,null,"300393   CltCGARbg"]
["Education Development Center, Inc. - 619",null,null,null,null,null,"300394   CltCGABsv"]
["Egyptian Cultural & Educ Bureau - 55",null,null,null,null,null,"300395   CltCGAMCl"]
["Eli Lilly and Company - 618",null,null,null,null,null,"300396   CltCGAECl"]
["Emergent Biosolutions - 467",null,null,null,null,null,"300397   BgrdEndw"]
["Emergent Product Development UK Ltd - 762",null,null,null,null,null,"300398   HaughEndw"]
["EMMES Corporation - 565",null,null,null,null,null,"300399   Lvtt2Fd"]
["Emory University - 872",null,null,null,null,null,"300400   AETMHFEnd"]
["Encore Redevelopment - 3014",null,null,null,null,null,"300401   KuehneFd"]
["Endless Energy Corporation - 584",null,null,null,null,null,"300402   WennarFd"]
["Endocrine Fellows Foundation - 178",null,null,null,null,null,"300403   CtrAgeFd"]
["Engineered Solutions, LLC - 678",null,null,null,null,null,"300404   SHMldFd"]
["Engineering & Environment, Inc. - 734",null,null,null,null,null,"300405   HubrDbtFd"]
["Engineering Ventures, LLC - 704",null,null,null,null,null,"300406   TryonEndFd"]
["ENVIRON - 2733",null,null,null,null,null,"320001   OBGynPrfsh"]
["Environ Internation Corp - 2629",null,null,null,null,null,"320002   McClghPrf"]
["Environmental Defense - 497",null,null,null,null,null,"320003   HwdPrfZoo"]
["Environmental InSite Inc. - 509",null,null,null,null,null,"320004   PrkPrfFd"]
["Environmental Protection Agency - 1",null,null,null,null,null,"320005   AsbPrfPsyc"]
["Equinox Terrace Inc. - 353",null,null,null,null,null,"320006   FlntPrfEgr"]
["ERWR Development I LLC - 3013",null,null,null,null,null,"320007   ThyPrfAnat"]
["ESPC - 248",null,null,null,null,null,"320008   BshJycProf"]
["Essex Alliance Church - 2730",null,null,null,null,null,"320009   JBckPrAmBs"]
["European Union - 354",null,null,null,null,null,"320010   McCProfRsh"]
["Evidence-Based Education Research & - 3045",null,null,null,null,null,"320011   DrthPrfEgr"]
["Express Personnel Services - 355",null,null,null,null,null,"320012   WProfNeont"]
["eXtension - 769",null,null,null,null,null,"320013   IrdFPrfOnc"]
["ExxonMobil Foundation - 628",null,null,null,null,null,"320014   MJPrfNeurs"]
["Farm Service Agency, U.S. Department of - 772",null,null,null,null,null,"320015   GrossProf"]
["Fasstech Inc. - 337",null,null,null,null,null,"320016   DPGGProf"]
["Federal Emergency Management Agency - 2753",null,null,null,null,null,"320017   EndPrfRdTh"]
["Federal Highway Administration - 771",null,null,null,null,null,"320018   IKrakofPrf"]
["Federal Transit Administration - 899",null,null,null,null,null,"320019   MDGrGldPrf"]
["Fieldstone Foundation - 596",null,null,null,null,null,"320020   JSASPrfEnd"]
["Fletcher Allen Community Health Fndtn - 156",null,null,null,null,null,"320021   TmpGGPrfR"]
["Fletcher Allen Health Care - 525",null,null,null,null,null,"320022   EOLPrf"]
["Flight Attendant Medical Research - 802",null,null,null,null,null,"320023   AderProf"]
["Florida State University - 2962",null,null,null,null,null,"320024   DennisProf"]
["Fluke Biomedial - 648",null,null,null,null,null,"320025   AchenChr"]
["Fnd.for Advancement / Mesoamerican Study - 62",null,null,null,null,null,"320100   NStataProf"]
["Food & Drug Administration - 168",null,null,null,null,null,"320101   ELFrscProf"]
["Forcier Aldrich & Associates, Inc - 700",null,null,null,null,null,"320102   JCProfEcon"]
["Ford Foundation - 338",null,null,null,null,null,"320103   JPProfChem"]
["Francis Family Foundation - 3057",null,null,null,null,null,"320125   BckCRProf"]
["Fred Hutchinson Cancer Center - 189",null,null,null,null,null,"320126   MacCRProf"]
["Freeman Foundation - 148",null,null,null,null,null,"320127   RbtsCRProf"]
["Friends of Burlington Gardens - 559",null,null,null,null,null,"320128   MlrProf1"]
["Frontier Science and Technology Research - 654",null,null,null,null,null,"320129   MlrProf2"]
["Gates (Bill and Melinda) Foundation - 2751",null,null,null,null,null,"320130   SMLbwProf"]
["GBS CIDP Foundation International - 3003",null,null,null,null,null,"320131   BrzznoProf"]
["Genentech Inc - 186",null,null,null,null,null,"320132   LawsnProf"]
["General Dynamics Corporation - 25",null,null,null,null,null,"320133   BckrdProf"]
["General Electric Company - 36"]
["Genetics Systems Laboratory LP - 791"]
["Genzyme Corporation - 932"]
["George Washington University - 194"]
["Georgetown University - 510"]
["Georgia Southern University - 2634"]
["Getty Foundation - 801"]
["Gibney Family Foundation - 417"]
["Gilead Sciences, Inc - 2595"]
["Gill Foundation - 56"]
["Gilman Housing Trust, Inc - 880"]
["Gizmo Realty Holdings 1, LLC - 622"]
["GlaxoSmithKline - 834"]
["Global Resource Options,Inc DBA groSolar - 3103"]
["Goddard College - 2862"]
["Golden Gate National Parks Conservancy - 712"]
["Golder Associates, Inc. - 842"]
["Goodrich Corporation - 185"]
["Goodwill Industries of Northern New Engl - 3081"]
["Gordon and Betty Moore Foundation - 1795"]
["Graham Foundation for Advanced Studies - 799"]
["Graymont - 664"]
["Great Lakes Fishery Commission - 356"]
["Great Lakes National Forest CESU - 188"]
["Greater Burlington Industrial Corporatio - 761"]
["Greater Portland Council of Goverments - 3033"]
["Green Lantern Capital - 3104"]
["Green Mountain Club - 861"]
["Green Mountain Coffee Roasters Inc. - 496"]
["Green Mountain Electric Supply - 2963"]
["Green Mountain Engineering - 881"]
["Green Mountain Inst Environmental Democ - 357"]
["Green Mountain National Forest - 358"]
["Green Mountain Power Corporation - 38"]
["Group Health Research Institute - 928"]
["Guild Associates, Inc - 2794"]
["Guite, J. Michel - 803"]
["H.W. Ventures, LLC - 796"]
["Haematologic Technologies Inc. - 359"]
["Hardwick (Town Of) - 831"]
["Harrington Engineering,Inc - 2632"]
["Harris and Frances Block Foundation - 971"]
["Harrison Sand, Inc. - 783"]
["Hartland Group - 601"]
["Hayden (Charles) Foundation - 774"]
["Health Care Financing Administration - 693"]
["Health Effects Institute - 879"]
["Health Resources & Services Admin - 21"]
["Hearing Health Foundation - 2921"]
["Heifer International - 360"]
["Heindel & Noyes - 253"]
["Hemophilia and Thrombosis Research - 825"]
["Henry M.Jackson Foundation - 236"]
["Hewlett-Packard - 126"]
["High Meadows Foundation - 2675"]
["High Meadows Fund - 2687"]
["High Pond Woodworking - 466"]
["Hoffmann-La Roche Inc. - 197"]
["Holistic Management Internation - 918"]
["Hologic Inc - 2855"]
["Horticultural Research Institute - 472"]
["Hospital for Sick Children/Sick Kids FDN - 941"]
["Housing Vermont - 851"]
["Howard Hughes Medical Institute - 77"]
["Hoyle, Tanner, and Associates, Inc. - 794"]
["Hubbard Brook Research Foundation - 546"]
["Human Frontier Science Program Organztn - 170"]
["Hydra Biosciences Inc. - 200"]
["Iacocca Family Foundation - 793"]
["IBM Corporation - 282"]
["ICARDA- International Center for - 626"]
["Iconic Therapeutics, Inc. - 2770"]
["Immune Response Corporation - 98"]
["Indiana Hemophilia & Thrombosis Ctr, Inc - 2948"]
["Indiana University - 630"]
["Industrial Measurement Systems Inc. - 3011"]
["Industrial Minerals Association - 50"]
["Infill Capital Partners, LLC - 708"]
["InjecTx - 201"]
["Institute for Ecosystem Studies - 386"]
["Institute for Healthcare Improvement - 49"]
["Institute for Neurodegenerative - 740"]
["Institute of International Education - 171"]
["Institute of Museum & Library Services - 44"]
["Int Inst for Restorative Practices - 512"]
["Integrated Therapeutics Group Inc. - 35"]
["International Rescue Committee - 387"]
["International Society of Arboriculture - 15"]
["Intervale Center - 724"]
["Intervale Compost Products - 808"]
["Intl. Society for Study Lumbar Spine - 280"]
["Intrexon Corporation - 727"]
["Iowa State University - 661"]
["IPM Laboratories, Inc. - 643"]
["Iris - 123"]
["Ishan Gala Foundation - 940"]
["ITT Industries Inc. - 388"]
["J H Stuart Associates - 757"]
["J.A. McDonald Inc. - 245"]
["Jackson State University - 3032"]
["Jacob and Valeria Langeloth Fdn - 393"]
["James Paquette (Pete) - 859"]
["Janssen Pharmaceuticals - 203"]
["Japan Foundation - 469"]
["Jay Peak - 2700"]
["Jericho Underhill Park District - 495"]
["JMAR Technologies Inc. - 281"]
["John D. & Catherine T MacArthur Fdn - 395"]
["John E. Fogarty International Center - 537"]
["John Merck Fund - 401"]
["John Snow Inc - 2990"]
["Johns Hopkins University - 204"]
["Johnson & Johnson - 116"]
["Johnson & Johnson Pharmaceutical - 616"]
["Jon C & Katherine L Harvey Foundation - 465"]
["Josiah Macy Jr Foundation - 3034"]
["Jules Stein Eye Institute - 205"]
["Juvenile Diabetes Fdn International - 389"]
["JW McConnell Family Foundation - 3"]
["Kansas State University - 663"]
["Karlson Family Foundation - 2678"]
["KAS, Inc. - 867"]
["Kellogg (W.K.) Foundation - 697"]
["Klingenstein Third Generation Foundation - 702"]
["Komen (Susan G.) Breast Cancer Fdn - 613"]
["Krebs & Lansing Consulting Engineers - 390"]
["Kresge Foundation - 573"]
["LA County Center for Healthy Births - 694"]
["Lady Davis Institute Medical Research - 73"]
["Lahey Clinic, Inc. - 633"]
["Lake Champlain Basin Program - 391"]
["Lake Champlain Cancer Research Org - 249"]
["Lake Champlain Fish & Wildlife Managemen - 916"]
["Lake Champlain Research Consortium - 78"]
["Lake Rescue Association - 2763"]
["Lamoille County Justice Project - 962"]
["Lamoille North Supervisory Union - 374"]
["Lamoille South Supervisory Union - 642"]
["Lamoureux & Dickinson Consulting - 717"]
["Land For Good - 2890"]
["Landworks - 392"]
["Lattner Foundation (Forrest & Frances) - 2892"]
["Lawrence Smith - 42"]
["Leach Engineering Consultants, PA - 850"]
["Learn & Serve America - 683"]
["Learning Point Associates - 2649"]
["LeDucq Foundation - 2"]
["Leonardo Technologies, Inc. - 935"]
["Lesch-Nyman Syndrome Children's Research - 54"]
["Leukemia and Lymphoma Society - 28"]
["Ligand Pharmaceuticals Inc. - 121"]
["Lillie's Friends Foundation - 933"]
["Lilly Research Laboratories - 258"]
["Limerick Road Solar, LLC - 2968"]
["Lincoln University - 394"]
["Lintilhac Foundation - 207"]
["Llewellyn Howley & Associates Inc - 48"]
["Lockheed Martin Corporation - 2853"]
["Loeb Classical Library Foundation - 2875"]
["Los Alamos National Laboratory - 552"]
["Louis Berger Associates - 504"]
["Louisiana State University - 597"]
["Lovelace Respiratory Research Institute - 58"]
["Loyola University - 279"]
["Loyola University New Orleans - 924"]
["Lucille P Markey Charitable Trust - 473"]
["Ludlow (Village Of) - 849"]
["Lyndon State College - 746"]
["Maine Community College System, KVCC - 3065"]
["Maine Department of Transportation - 770"]
["Maine Medical Center - 966"]
["Manomet Center for Conservation Sciences - 547"]
["MAP Pharmaceuticals, Inc. - 754"]
["Maple Street School - 262"]
["Marathon Health, Inc. - 732"]
["Marble Island Investments - 146"]
["March of Dimes - 10"]
["Marco Hi-Tech JV, Ltd - 767"]
["Marine Biological Laboratory - 397"]
["Marine Conservation Biology Institute - 910"]
["Marine Conservation Biology Institute - 927"]
["Marine Mammal Commission - 2660"]
["Mark Funari - 553"]
["Mary Imogene Bassett Hospital - 647"]
["Mary Kay Ash Charitable Foundation - 501"]
["Masimo Corporation - 2758"]
["Massachusetts Department of Agricultural - 919"]
["Massachusetts Department of Conservation - 2777"]
["Massachusetts General Hospital - 210"]
["Massachusetts Institute of Technology - 605"]
["Massachusetts Society for Promoting Agri - 897"]
["Maternal Child Health Bureau/HRSA/DHHS - 2301"]
["Mayo Clinic - 915"]
["McCain Consulting Inc. - 120"]
["McFarland-Johnson Inc. - 157"]
["McMasters University - 23"]
["MediaBalance, Inc - 615"]
["Medical Care Development - 2847"]
["Medical College of Wisconsin - 894"]
["Medical College of Wisconsin - 896"]
["Medical University of Ohio - 513"]
["Medical University of South Carolina - 2635"]
["Medicines for Malaria Venture - 2899"]
["Medtronic Inc - 151"]
["Memorial Sloan-Kettering Cancer Center - 494"]
["Merck and Company Inc. - 252"]
["Mercy Corp - 3025"]
["Meridian Sensors Inc. - 211"]
["Mesothelioma Applied Research Foundation - 610"]
["Metal Hydride Technologies Inc - 72"]
["MGI Pharma Inc - 95"]
["Michigan State University - 2729"]
["MicroBrightField Inc - 2991"]
["MicroDesign Consulting Ltd. - 378"]
["Microsoft - 543"]
["Middlebury Area Land Trust - 257"]
["Middlebury College - 471"]
["Middlebury South Village LLC - 254"]
["Milton Town School District - 853"]
["Missisquoi Associates, Inc. - 2878"]
["Mississippi State University - 656"]
["MITRE Corporation - 826"]
["Montana State University - 898"]
["Montclair State University - 2701"]
["Montefiore Medical Center - 722"]
["Montpelier Gun Club - 2677"]
["Montpelier School District - 737"]
["Morris Animal Foundation - 80"]
["Morrisville Water and Light - 840"]
["Mount Sinai School of Medicine - 212"]
["MSK Engineering and Design - 876"]
["Muscular Dystrophy Association - USA - 2661"]
["MVP Health Plan - 549"]
["Myocarditis Foundation - 2884"]
["MyROW, Inc. - 909"]
["N.E. Kingdom Travel and Tourism Assoc. - 956"]
["NanoScale  Corp - 2762"]
["Nanoscale Informal Science Ed Network - 3100"]
["NASBHC: National Assembly on School-Base - 2880"]
["NASPGHAN - 33"]
["Nat 4-H Cooperative Curriculum System - 514"]
["Nat Assoc Education of Young Children - 345"]
["Nat Ctr Chronic Disease Prevt & Hlth - 199"]
["Nat Ctr for Compl & Alternative Medicine - 221"]
["Nat Ctr for Research Resources - 239"]
["Nat Ctr on Minority Hlth & Hlth Disparit - 538"]
["Nat Initiative Children Health Quality - 372"]
["Nat Inst Allergy & Infectious Diseases - 223"]
["Nat Inst Arthritis Musculoskeletal Skin - 368"]
["Nat Inst Child Health & Human Developmt - 224"]
["Nat Inst Deafness & Other Com Disorders - 371"]
["Nat Inst Dental & Craniofacial Research - 225"]
["Nat Inst Diabetes Digestive & Kidney - 190"]
["Nat Inst Environmental Health Sciences - 230"]
["Nat Inst General Medical Sciences - 369"]
["Nat Inst Neurological Disorders & Stroke - 191"]
["Nat Inst of Biomedical Imaging & Bioeng - 533"]
["Nat Inst of Mental Health - 370"]
["Nat Inst On Alcohol Abuse & Alcoholism - 213"]
["National 4-H Council - 346"]
["National Aeronautics & Space Admin - 192"]
["National Alliance for Research on - 768"]
["National Association of State - 773"]
["National Association of State Directors - 621"]
["National Audubon Society, Inc - 854"]
["National Biological Information - 775"]
["National Cancer Center - 112"]
["National Cancer Institute - 222"]
["National Cattlemen's Beef Association - 2867"]
["National Childhood Cancer Foundation - 79"]
["National Collegiate Inventors and - 743"]
["National Development and Research - 2749"]
["National Endowment for the Humanities - 172"]
["National Eye Institute - 344"]
["National Film Preservation Foundation - 748"]
["National Fish and Wildlife Foundation - 813"]
["National Geographic Society - 542"]
["National Heart Lung & Blood Institute - 140"]
["National Hemophilia Foundation - 20"]
["National Highway Traffic Safety Admin - 2981"]
["National Human Genome Research Institute - 532"]
["National Institute of Nursing Research - 534"]
["National Institute of Standards and Tech - 874"]
["National Institute on Aging - 141"]
["National Institute on Drug Abuse - 102"]
["National Institutes of Health - 220"]
["National Jewish Health - 2609"]
["National Kidney Foundation - 182"]
["National Library of Medicine/NIH/DHHS - 950"]
["National Life Insurance Co. - 3035"]
["National Marrow Donor Program - 640"]
["National Multiple Sclerosis Society - 564"]
["National Network Libraries of Medicine - 290"]
["National Oceanic Atmospheric Admin - 29"]
["National Palliative Care Research Center - 2616"]
["National Park Foundation - 365"]
["National Park Service - 247"]
["National Research Council - 655"]
["National Science Foundation - 214"]
["National Security Agency - 367"]
["National Space Grant Foundation - 2765"]
["National Telecommunications & Informatio - 920"]
["National Wildlife Federation - 493"]
["National Writing Project Corporation - 103"]
["Native VesT Properties LLC - 541"]
["Natl Ctr Adv Translational Sciences - 2868"]
["Natural Resources Board - 110"]
["Nature Conservancy - 366"]
["Naval Air Warfare Center AD (PAX) - 845"]
["Naval Medical Research Center - 612"]
["Neighborhood Funders Group - 792"]
["Nell Newman Foundation - 3010"]
["Nellie Mae Education Foundation - 2706"]
["New Chapter, Inc. - 3108"]
["New England Dairy and Food Council - 3060"]
["New England Dairy Promotion Board - 376"]
["New England Fertility Society - 3015"]
["New England Floriculture, Inc - 2854"]
["New England Foundation for the Arts - 2924"]
["New England Greenhouse Conference - 470"]
["New England Interstate Water Pollution - 402"]
["New England Natural Resource Center - 993"]
["New England Nursery Association Inc. - 113"]
["New England Otolaryngology Society - 217"]
["New England Tranportation Consortium - 406"]
["New England Waste Services of Vermont - 750"]
["New Hampshire Plant Growers Association - 2488"]
["New Jersey DEP - 173"]
["New Visions for Public Schools - 383"]
["New Visions Foundation - 219"]
["New York Community Trust - 914"]
["New York State Energy and Development Au - 2876"]
["New York University - 592"]
["New York University School of Medicine - 908"]
["Newbury (Village Of) - 631"]
["Newellink USA Inc - 998"]
["NIH Clinical Center - 539"]
["NKT Therapeutics - 3061"]
["North American Maple Syrup Council - 271"]
["North Carolina State University - 583"]
["North Country Health Systems, Inc. - 636"]
["North Dakota State University Fargo - 492"]
["Northeast Center for Risk Management - 2748"]
["Northeast Kingdom Community Action - 216"]
["Northeast Kingdom Human Services Inc. - 226"]
["Northeast Kingdom Learning Services, In - 2705"]
["Northeast Organic Farming Assoc of VT - 255"]
["Northeastern American Urological Assn. - 218"]
["Northeastern University - 875"]
["Northeastern VT Area Health Education C - 2856"]
["Northern Counties Health Care, Inc. - 883"]
["Northern Forest Center - 570"]
["Northern Tier Center for Health - 2750"]
["Northern Vermont Resource Conservation - 764"]
["Northwest Regional Planning Commission - 650"]
["Northwestern University - 382"]
["Norwich University - 302"]
["Nova Scotia Agricultural College - 905"]
["Novacare - 476"]
["Novartis Foundation - 242"]
["Novartis Pharmaceuticals Inc. - 432"]
["NSABP Foundation Inc. - 250"]
["Nuclear Cardiology Foundation - 637"]
["Nulhegan Gateway Association - 829"]
["OBNET CONSORTIUM - 623"]
["OBNET Services, LLC - 711"]
["O'Brien Brothers Agency Inc - 45"]
["Office of Naval Research - 844"]
["Office of the Director, National Inst. - 2896"]
["Office on Women's Health - 884"]
["Ohio Floriculture Foundation - 459"]
["Okemo Mountain Resort - 169"]
["O'Leary-Burke Civil Associates - 433"]
["Olympic Precision, Inc. - 684"]
["OMeGA Medical Grants Association, LLC - 860"]
["Omnium Chimique - 208"]
["OMYA Inc - 377"]
["Open Society Institute - 838"]
["Orchard Foundation - 380"]
["Oregon Department of Justice - 581"]
["Oregon State University - 657"]
["Organic Farming Research Foundation - 753"]
["Organization for Autism Research - 580"]
["Orin Thomas and Sons, Inc. - 2731"]
["Orleans Essex North Supervisory Union - 567"]
["OrthoLogic Inc. - 373"]
["Orthopaedic Research & Education Fdn - 431"]
["Otter Creek Engineering Inc. - 147"]
["PAION Deutschlang GmbH - 2861"]
["Pan American Health and Education - 747"]
["Pan American Health and Education Fdn - 548"]
["Paragon Construction - 59"]
["Parkinson's Disease Foundation - 960"]
["Pathways to Housing Vermont - 2848"]
["Patient Centered Primary Care Collab. - 958"]
["PaxVax - 3046"]
["PCL Civil Constructors, Inc. - 3019"]
["Peace Corps (PC) - 14"]
["Peloquin Construction, LLC - 689"]
["Pennington Biomedical Research Center - 260"]
["Pennsylvania State University - 490"]
["People of Addison County Together - 381"]
["Perennial Plant Association - 652"]
["Performance Lasers - 2843"]
["Perm Fund Well-Being of VT Children - 385"]
["Pfeiffer (Gustavus&Louise) Research Fdn - 716"]
["Pfizer Pharmaceuticals - 57"]
["Pharmacia Inc. - 108"]
["Pharmion Corporation - 111"]
["Phelps Engineering Inc. - 183"]
["Philip Morris External Research Program - 384"]
["Philips Healthcare - 2769"]
["Phoenix Services, LLC - 745"]
["PHS Salary Cap Cost Share - 624"]
["Pike Industries, Inc - 907"]
["Pine Grove Excavation - 144"]
["Pizzagalli Properties Inc. - 424"]
["PJM Interconnection - 788"]
["PlaCor, Inc. - 789"]
["Plattsburgh State University - 133"]
["Polycystic Kidney Disease Foundation - 85"]
["Porter & Associates - 256"]
["Porter Medical Center - 264"]
["Potts Memorial Foundation - 244"]
["Poultney-Mettawee Conservation District - 434"]
["PPD Development, LP - 627"]
["Preeclampsia Foundation - 809"]
["Preservation Trust of VT - 569"]
["Prevent Cancer Foundation - 2779"]
["Princeton University - 682"]
["Proctor & Gamble Pharmaceuticals, Inc. - 687"]
["PSYCHOLOGY CONSORTIUM - 666"]
["Pulmonary Fibrosis Foundation - 730"]
["Purdue University - 3021"]
["QLT Phototherapeutics Inc. - 90"]
["QuantaSpec - 578"]
["Quantell, Inc. - 609"]
["Queen's University - 830"]
["Ramco Laboratories Inc - 81"]
["Rand Corp. - 379"]
["Reach Out and Read, Inc. - 833"]
["Redeeming Grace Church - 862"]
["Redstone Inc. - 858"]
["Regional Medical Center at Lubec Inc - 545"]
["Renova Therapeutics, Inc. - 2877"]
["Research and Development Solutions, Inc. - 649"]
["Research Corporation - 84"]
["Research Education & Economics - 8"]
["Research Fdn of State University of NY - 435"]
["Resource Systems Group - 92"]
["Resverlogix Corporation - 807"]
["Rhode Island Kids Count - 407"]
["Richard King Mellon Foundation - 400"]
["Riverledge Foundation, Ltd. - 2889"]
["Riverside Research Institute - 900"]
["RJR Nabisco Inc - 273"]
["RLM Associates - 70"]
["Robert Calamo - 524"]
["Robert Wood Johnson Foundation - 274"]
["Roche Diagnostics - 115"]
["Rochester Institute of Technology - 787"]
["Ruggiano Engineering Inc - 3083"]
["Rutgers University - 425"]
["Rutland County Treatment Court - 963"]
["Rutland Regional Planning Commission - 822"]
["S. D. Ireland Brothers Corporation - 703"]
["Saint Lawrence University - 516"]
["Samuel H Kress Foundation - 3050"]
["Sanborn, Head & Associates, Inc. - 2885"]
["Sandia National Laboratories - 942"]
["Sanofi Pharmaceuticals Inc. - 275"]
["Sarah Hadd - 688"]
["Save Outdoor Sculpture! - 403"]
["Scoliosis Research Society - 814"]
["Scripps Research Institute - 589"]
["Seattle Children's Hospital - 870"]
["Semiconductor Advanced Lithography - 477"]
["Seoul National University - 436"]
["Seprecor, Inc. - 558"]
["Sepulveda Research Corporation - 925"]
["SGC ENGINEERING LLC - 563"]
["Share Our Strength - 904"]
["Shelburne (Town Of) Vermont - 765"]
["Shelburne Farms - 412"]
["Shelburne Museum-Vermont - 554"]
["Sheldon (Town Of) - 852"]
["Simons Foundation - 2786"]
["Small Business Administration - 405"]
["Smith Alvarez Sienkiewycz Architects - 763"]
["Smith Richardson Foundation, Inc. - 806"]
["Smuggler's Notch - 994"]
["Snelling Center for Government - 419"]
["Snyder Companies, The - 726"]
["So. Florida Veterans Affairs Foundation - 2842"]
["Soc. Psychological Study of Social Issue - 52"]
["Solar Renewable Energy, LLC - 2984"]
["South Carolina State University - 426"]
["South Lake Champlain Trust - 474"]
["Southern Methodist University - 921"]
["Southern Vermont Area Health Education - 758"]
["Southwest Oncology Group - 106"]
["SP Land Company, LLC - 2767"]
["Spectrum Health Medical Group - 3044"]
["Spencer Foundation - 3109"]
["Sport Trails of the Ascutney Basin - 3059"]
["Springfield Solar Alliance I - 2989"]
["St. Baldrick's Foundation - 968"]
["St. Luke's Roosevelt Hospital - 437"]
["St. Michael's College - 2787"]
["Stanford University - 61"]
["Stanley Smith Horticultural Trust - 819"]
["Stantec Consulting Services, Inc. - 701"]
["State Farm Youth Advisory Board - 3073"]
["State of Vermont Green Mt Care Board - 3089"]
["State Univ. of New York at Plattsburgh - 134"]
["State University of New York - 427"]
["Steve Hulburt - 965"]
["Stonyfield Farm - 2911"]
["Strolling of the Heifers Foundation - 475"]
["Stryker-Howmedica-Osteonics - 66"]
["Substance Abuse & Mental Health Services - 721"]
["Sunovion Pharmaceuticals Inc. - 551"]
["Synthes Spine - 2631"]
["Systems Technology Inc. - 30"]
["T & G Contruction - 89"]
["Takeda Pharmaceutical Company Limited - 816"]
["Takeda Pharmaceuticals North America Inc - 715"]
["Takeda San Francisco - 865"]
["Tarrant Foundation - 992"]
["Taurus New England Investments, LLC - 778"]
["TD Charitable Foundation - 823"]
["TEACH: Toxic Envir. Affects Chld Hlth - 119"]
["Tel Aviv University - 270"]
["Templeton Foundation - 991"]
["Tennesse Technological University - 943"]
["Tetra Tech Rizzo - 795"]
["The Alfred P. Sloan Foundation - 863"]
["The Arnold P. Gold Foundation - 903"]
["The Bay and Paul Foundations - 396"]
["The College Board - 416"]
["The Housing Foundation Inc. - 530"]
["The Johnson Company - 815"]
["The Lewis Foundation - 557"]
["The Longview Foundation - 418"]
["The Marsh Rivkin Ctr for Ovarian Cancer - 3018"]
["The Medical Foundation - 2704"]
["The Ohio State University - 2993"]
["The PEW Charitable Trusts - 2936"]
["The President and Fellows of Harvard - 970"]
["The Retrovest Companies - 284"]
["The Sandy River Charitable Foundation - 3017"]
["The Santa-Barbara Family Foundation - 481"]
["The Tarrant Supporting Organization - 482"]
["The Tutorial Center - 780"]
["The University of Texas M. D. Anderson C - 887"]
["The University of Toledo - 574"]
["Thomas Thompson Foundation - 241"]
["Thompson Island Outward Bound Education - 923"]
["Thoratec Corporation - 930"]
["Tiffany & Co. Foundation - 438"]
["Timber Creek At Okemo, Number II, LLC - 709"]
["Time Line Architecture - 529"]
["Tip Strategies, Inc - 561"]
["Town of Charlotte - 2773"]
["Town of Colchester - 479"]
["Town of Glover - 2707"]
["Town of Guilford - 2768"]
["Town of Hancock VT - 877"]
["Town of Hinesburg - 511"]
["Town of Johnson - 2925"]
["Town of Milton - 468"]
["Town of Moretown - 3106"]
["Town of Pittsford Municipal Office - 2491"]
["Town of Randolph - 3020"]
["Town of Troy - 2492"]
["Translation Genomics Research Institute - 2875"]
["TranSystems - 776"]
["Triosyn Corp. - 835"]
["Tri-Town Water District - 2703"]
["Trucost PLC - 517"]
["Trudell Consulting Engineers Inc. - 206"]
["Trust for Mutual Understanding - 64"]
["Trust for Public Lands, The - 706"]
["Tufts Medical Center - 105"]
["Turrell Fund - 600"]
["Twin Star Medical, Inc. - 953"]
["Two Rivers -Ottauquechee Regional - 777"]
["Uniformed Services University of Health - 550"]
["United Construction Corporation - 906"]
["United Nations Environment Programme - - 901"]
["United States Department of State - 595"]
["United States Institute of Peace - 440"]
["United States-Japan Foundation - 441"]
["United Therapeutics Corporation - 3047"]
["Univ. of Med. & Dentistry of New Jersey - 827"]
["Universal Periodic Review - 2912"]
["University of Alabama at Birmingham - 289"]
["University of Alaska Anchorage - 625"]
["University of Arizona - 263"]
["University of Arkansas - 489"]
["University of California - 293"]
["University of California Los Angeles - 294"]
["University of California Riverside - 410"]
["University of California San Francisco - 234"]
["University of California Santa Barbara - 420"]
["University of California Santa Cruz - 2736"]
["University of California, Davis - 587"]
["University of California, Irvine - 817"]
["University of California, San Diego - 744"]
["University of Canterbury, New Zealand - 2888"]
["University of Chicago - 153"]
["University of Cincinnati - 891"]
["University of Colorado - 268"]
["University of Colorado Denver - 888"]
["University of Colorado Health Sciences - 488"]
["University of Connecticut - 237"]
["University of Copenhagen-Faculty of LIfe - 913"]
["University of Delaware - 409"]
["University of Florida - 957"]
["University of Georgia - 430"]
["University of Houston - 2860"]
["University of Illinois - 478"]
["University of Kansas Center for Research - 3099"]
["University of Kentucky - 411"]
["University of Louisville - 2929"]
["University of Maine - 150"]
["University of Maryland - 251"]
["University of Massachusetts - 266"]
["University of Massachusetts Amherst - 487"]
["University of Massachusetts Boston - 518"]
["University of Memphis - 442"]
["University of Miami - 2898"]
["University of Michigan - 229"]
["University of Minnesota - 443"]
["University of Mississippi Medical Center - 3105"]
["University of Nebraska - 2708"]
["University of New Hampshire - 444"]
["University of North Carolina - 291"]
["University of Pennsylvania - 295"]
["University of Pittsburgh - 136"]
["University of Rhode Island - 421"]
["University of Rochester - 166"]
["University of South Carolina - 739"]
["University of South Florida - 947"]
["University of Southern Maine - 938"]
["University of Texas - 480"]
["University of Utah - 422"]
["University of Virginia - 893"]
["University of Washington - 259"]
["University of Wisconsin - 297"]
["UPC Wind Management LLC - 519"]
["Upjohn Company - 215"]
["US Agency for International Development - 27"]
["US Department of Agriculture - 333"]
["US Department of Education - 334"]
["US Department of Homeland Security - 691"]
["US Department of Justice - 232"]
["US Department of Labor - 692"]
["US Department of the Army - 335"]
["US Department of Transportation - 180"]
["US Department of Treasury - 696"]
["US Egypt Joint Science and Technology - 886"]
["US Fish & Wildlife Service - 428"]
["US Geologic Survey - 296"]
["USAMRAA - 555"]
["USDA Agricultural Research Service - 139"]
["USDA Animal&Plant Health Inspection Srv - 317"]
["USDA Farm Services Agency - 2617"]
["USDA Foreign Agricultural Services - 31"]
["USDA Forest Service - 227"]
["USDA Natural Resources Conserv Service - 63"]
["USDA NIFA - 336"]
["USDA Risk Management Agency - 429"]
["USDA Rural Development - 562"]
["USDA Rural Housing Services - 2861"]
["USDA/Agricultural Marketing Service - 895"]
["US-Israel Binational Science Fdn - 439"]
["Utah State University - 608"]
["UT-Battelle, LLC - 491"]
["V Foundation for Cancer Research - 24"]
["Van Andel Institute - 929"]
["Vanasse Hangen Brustlin Inc. - 520"]
["Vanderbilt University - 2959"]
["Various Individual Sponsors - 47"]
["VaxGen Inc. - 415"]
["Verizon Foundation - 586"]
["Vermont  Department of Libraries - 164"]
["Vermont  Department of Public Service - 486"]
["Vermont Academy of Family Physicians - 843"]
["Vermont Agency of Agric Food &Markets - 19"]
["Vermont Agency of Commerce & Community - 741"]
["Vermont Agency of Education - 452"]
["Vermont Agency of Human Services - 5"]
["Vermont Agency of Natural Resources - 304"]
["Vermont Agency of Transportation - 125"]
["Vermont AHS Department of Corrections - 2764"]
["Vermont AHS Dept of Aging Disabilities - 174"]
["Vermont AHS Dept of Health - 342"]
["Vermont AHS Developmental Disabilities - 2303"]
["Vermont AHS Office of Vermont Health - 714"]
["Vermont Alternative Energy Corporation - 485"]
["Vermont Archaeological Society - 878"]
["Vermont Army National Guard - 238"]
["Vermont Arts Council - 447"]
["Vermont Association for the Blind and - 756"]
["Vermont Attorney General's Office - 343"]
["Vermont Campaign to End Childhood Hunger - 521"]
["Vermont Campus Compact - 298"]
["Vermont Center for Crime Victim Services - 786"]
["Vermont Center for Geographic Informat'n - 96"]
["Vermont Children's Trust Fund - 698"]
["Vermont Community Foundation - 448"]
["Vermont Community Wind, LLC - 2489"]
["Vermont Dairy Promotion Council - 18"]
["Vermont Dental Service Corporation - 484"]
["Vermont Department of Buildings and Gene - 869"]
["Vermont Department of Fish/Wildlife - 6"]
["Vermont Department of Forests/Parks - 7"]
["Vermont Department of Labor - 1802"]
["Vermont Department of Labor and Industry - 759"]
["Vermont Department of P.A.T.H. - 454"]
["Vermont Department of Public Safety - 167"]
["Vermont Dept for Children and Families - 179"]
["Vermont Dept of Economic Development - 522"]
["Vermont Dept of Environment Conservation - 453"]
["Vermont Dept of Homeland Security - 198"]
["Vermont Dept of Tourism & Marketing - 463"]
["Vermont Dept. of Finance & Management - 2083"]
["Vermont Dept. of Finance & Management - 590"]
["Vermont Division for Historic Preservat - 868"]
["Vermont Electrical Power Company - 71"]
["Vermont Family Forests - 729"]
["Vermont Forensics Assessment - 2788"]
["Vermont Forum on Sprawl - 11"]
["Vermont Gas Systems - 299"]
["Vermont Hard Cider Company - 2897"]
["Vermont Head Start State Collaboration - 455"]
["Vermont Health Foundation - 300"]
["Vermont Heart Association - 86"]
["Vermont Higher Education Collaborative - 949"]
["Vermont Housing & Conservation Board - 451"]
["Vermont Humanities Council - 408"]
["Vermont Institutes - 404"]
["Vermont Legislative Council - 725"]
["Vermont Mountain Bike Association - 922"]
["Vermont Natural Coatings LLC - 999"]
["Vermont Network Against Domestic Violenc - 450"]
["Vermont Office of Court Administrator - 2784"]
["Vermont Office of the Treasurer - 181"]
["Vermont Oxford Network - 2745"]
["Vermont Program for Quality Health Care - 828"]
["Vermont Protection and Advocacy - 662"]
["Vermont Rural Water Associatioin - 677"]
["Vermont School Boards Association - 917"]
["Vermont St. DEC - 162"]
["Vermont State 4-H Foundation, Inc. - 779"]
["Vermont State Colleges - 785"]
["Vermont State Legislature - 2923"]
["Vermont Student Assistance Corporation - 591"]
["Vermont Sustainable Jobs Fund - 449"]
["Vermont Technical College - 866"]
["Vermont Telecommunications Authority - 2608"]
["Vermont Tree Fruit Growers Association - 483"]
["Vermont Women's Fund - 413"]
["Versatilis LLC - 301"]
["Vesco Energy, LLC - 2607"]
["Veterans Medical Research Foundation - 2922"]
["Village Associates LLC - 560"]
["Virginia Commonwealth University - 3012"]
["VT Assoc. of Court Diversion Programs - 961"]
["VT Child Care Industry and Careers Couns - 3026"]
["VT Department of  Mental Health - 857"]
["VT Dept of Developmental & Mental Hlth - 526"]
["VT NH Affiliate Susan G Komen - 568"]
["Vt. Center For Emerging Technologies - 2103"]
["Waitsfield, Town Of - 2955"]
["Wake Forest University - 306"]
["Walker (George) Milk Research Fund - 837"]
["Wallace Global Fund - 805"]
["Warner-Lambert Research Institute - 261"]
["Washington Central Supervisory Union - 944"]
["Washington County Youth Service Bureau - 864"]
["Washington State University - 445"]
["Washington University at St. Louis - 446"]
["Watson Laboratories Inc - 576"]
["Wayne State University - 414"]
["Webster Veterinary Service - 997"]
["Wellcome Trust - 3114"]
["Wells National Estuarine Research - 720"]
["West Virginia University - 2676"]
["WestED - 375"]
["Weston & Bean Inc. - 34"]
["Weston & Sampson Engineers, Inc - 2743"]
["Whitaker Foundation - 285"]
["Wild Salmon Center - 2304"]
["Wildlife Conservation Society - 2872"]
["Willaim Maclay Architects & Planners - 398"]
["Willard Jackson - 575"]
["William Talbott Hillman Foundation - 1793"]
["Williston (Town of) - 603"]
["Windham Child Care Association - 832"]
["Windham Foundation - 332"]
["Windsor County Courthouse - 3075"]
["Windsor County Justice Reinvestment Proj - 2752"]
["Winooski School District - 363"]
["Winrock International - 585"]
["Winstanley Property Management, LLC - 3066"]
["Winston-Salem Foundation - 934"]
["Wistar Institute - 2966"]
["Woodrow Wilson Nat Fellowship Fdn - 361"]
["Woods Hole Research Center - 364"]
["Woodstock (Town of) - 2902"]
["Woodstock Water Buffalo Company - 286"]
["World Anti-Doping Agency - 736"]
["World Wildlife Fund - 2869"]
["Wyeth Laboratories - 307"]
["Wyeth Nutritionals Inc - 362"]
["Wyeth Pharmaceuticals - 246"]
["Wyoming Council of Trout Unlimited - 3082"]
["Yale University - 82"]
["Youth Advisory Council of Caledonia and - 755"]
["Youth Health Consortium - 676"]
["Zeneca Pharmaceutical Group - 135"]
["Zimmer, Inc. - 2867"]
["Zinpro Corporation - 665"]